Cogmind - Beta 15 @@@ ROGUE MODE // 2025.07.19 @ 21:04:14 Player: EX-OCT Result: Destroyed by Executioner with Helical Railgun Performance ------------- Evolutions (8) 4000 Regions Visited (26) 5200 Robots Destroyed (147) 735 Value Destroyed (6680) 6680 Prototype IDs (171) 3420 Alien Tech Used (7) 1400 Bonus (4387) 4387 TOTAL SCORE: 25822 Bonus ------- High Alert Combat Kills 293 Delivered SUBCON Basin 2000 Registered with UFD 300 Met Optimus in HQ 500 Met Imprinter 300 Met Zhirov 300 Met Optimus at Protoforge 1000 Friendly Fire -306 Cogmind --------- Core Integrity 0/1450 Matter 300/300 Energy 8/100 System Corruption 6% Temperature Cool (0) Movement Flying (40) Location -2/Protoforge Parts ------- > --- POWER (2) -------- (None) > --- PROPULSION (8) --- Nuclear Pulse Array Impulse Thruster Array Impulse Thruster Array > --- UTILITY (11) ----- Experimental Optical Array Experimental Targeting Computer Experimental Core Analyzer Improved Armor Integrity Analyzer Experimental Cloaking Device (fused) Centrium Light Armor Plating Graphene Brace A0-MCA's Component Scanner > --- WEAPON (2) ------- (None) > --- INVENTORY (5) ---- Transdimensional Reconstructor Helical Railgun Helical Railgun Plasma Lance Peak State ------------ > --- POWER ------------ Compact Particle Reactor Graviton Reactor > --- PROPULSION ------- Impulse Thruster Field Propulsion Array Q-thruster Q-thruster Cooled Q-thruster Cooled Q-thruster Cooled Q-thruster > --- UTILITY ---------- Experimental Power Amplifier Medium Storage Unit Advanced Sensor Array Advanced Signal Interpreter Advanced Transmission Jammer Advanced Cloaking Device Advanced Hacking Suite Experimental Hacking Suite Experimental System Shield Ghost Barrier A0-MCA's Component Scanner > --- WEAPON ----------- Sigix Broadsword > --- INVENTORY -------- Micro Antimatter Reactor Impulse Thruster Q-thruster Deep Structural Scanner Advanced ECM Suite Graphene Brace Dimensional Node Initializer Transdimensional Reconstructor Transdimensional Reconstructor Supercharged TR [Rating: 198] Favorites ----------- Power Light Quantum Reactor Engine Light Angular Momentum Engine Power Core Light Fission Core Reactor Light Quantum Reactor Propulsion Experimental Surge Thruster Treads Light Treads Leg Carbon-fiber Leg Wheel Overtuned Huge Scrapsphere Hover Unit Gyrokinetic Inverter Flight Unit Experimental Surge Thruster Utility Experimental Core Analyzer Device Graphene Brace Storage Medium Storage Unit Processor Experimental Core Analyzer Hackware Advanced Hacking Suite Protection Centrium Light Armor Plating Weapon Plasma Lance Energy Gun Subdweller Laser Energy Cannon Beam Cannon Ballistic Gun Helical Railgun Ballistic Cannon Omega Cannon Launcher Grenade Launcher Special Weapon Multitool Impact Weapon Hammer Slashing Weapon Companion Sword Piercing Weapon Plasma Lance Build | -11 -10 -10 -9 -9 -6 -6 -6 -6 -6 -6 -5 -5 -5 -5 -4 -4 -4 -4 -4 -4 -3 -3 -3 -2 -2 -2 ------- Run | Yrd Mat Sub Rec Scr Fac Was Fac Low Low Zio Pro Fac Was Fac Fac Was Fac Upp Upp Zhi Pro Res Tes Res Qua Frg Slots Evolved 16 | . . . . . 8 . . . . . . 2 . . 2 . . . . . . 2 . 2 . . Power 1 | . . . . . . . . . . . . . . . . . . . . . . 1 . . . . Propulsion 6 | . . . . . 4 . . . . . . . . . . . . . . . . 1 . 1 . . Utility 9 | . . . . . 4 . . . . . . 2 . . 2 . . . . . . . . 1 . . Weapon . | . . . . . . . . . . . . . . . . . . . . . . . . . . . Parts Attached 285 | 6 14 11 1 6 24 2 27 2 3 1 . 18 . 14 9 . 17 . . 4 . 31 15 5 5 70 Power 33 | 1 2 2 . . 5 . 3 . . . . 3 . 1 2 . 1 . . . . 5 3 . . 5 Engine 8 | 1 2 2 . . 2 . . . . . . 1 . . . . . . . . . . . . . . Core 9 | . . . . . 3 . 3 . . . . 1 . 1 1 . . . . . . . . . . . Reactor 16 | . . . . . . . . . . . . 1 . . 1 . 1 . . . . 5 3 . . 5 Propulsion 102 | 2 1 3 . 3 10 1 15 . 2 . . 5 . 8 2 . 3 . . 2 . 9 1 2 1 32 Treads 3 | 2 . 1 . . . . . . . . . . . . . . . . . . . . . . . . Leg 2 | . . . . . 2 . . . . . . . . . . . . . . . . . . . . . Wheel 8 | . 1 2 . 1 . . . . . . . . . . . . . . . . . . . . . 4 Hover 14 | . . . . . . 1 5 . . . . 2 . 3 . . . . . . . . . . . 3 Flight 75 | . . . . 2 8 . 10 . 2 . . 3 . 5 2 . 3 . . 2 . 9 1 2 1 25 Utility 116 | 1 7 3 . 1 9 1 9 2 1 1 . 10 . 5 5 . 10 . . 2 . 15 7 2 3 22 Device 50 | 1 . 1 . . 5 . 5 1 1 1 . 3 . 3 1 . 6 . . . . 8 3 1 3 7 Storage 10 | . 2 . . . 1 . . . . . . 1 . . 1 . 1 . . . . 2 . . . 2 Processor 18 | . . . . 1 . . 2 . . . . 2 . 1 . . 1 . . . . 1 1 . . 9 Hackware 26 | . . . . . 3 1 2 . . . . 4 . 1 3 . 2 . . 1 . 4 3 1 . 1 Protection 12 | . 5 2 . . . . . 1 . . . . . . . . . . . 1 . . . . . 3 Artifact . | . . . . . . . . . . . . . . . . . . . . . . . . . . . Weapon 34 | 2 4 3 1 2 . . . . . . . . . . . . 3 . . . . 2 4 1 1 11 Energy Gun 3 | 1 . 2 . . . . . . . . . . . . . . . . . . . . . . . . Energy Cannon 5 | . 2 . . . . . . . . . . . . . . . . . . . . . 1 1 . 1 Ballistic Gun 11 | 1 . 1 . . . . . . . . . . . . . . 1 . . . . . . . . 8 Ballistic Cannon 1 | . . . . . . . . . . . . . . . . . . . . . . . 1 . . . Launcher 2 | . 2 . . . . . . . . . . . . . . . . . . . . . . . . . Special Weapon 1 | . . . . . . . . . . . . . . . . . 1 . . . . . . . . . Impact Weapon 1 | . . . 1 . . . . . . . . . . . . . . . . . . . . . . . Slashing Weapon 6 | . . . . 2 . . . . . . . . . . . . . . . . . 1 2 . 1 . Piercing Weapon 4 | . . . . . . . . . . . . . . . . . 1 . . . . 1 . . . 2 Special Melee Weapon . | . . . . . . . . . . . . . . . . . . . . . . . . . . . Unidentified Prototypes 30 | . . . . 1 2 . 1 1 . . . 2 . . 2 . 1 . . 2 . 3 9 1 4 1 Corrupted Parts 1 | . . . . . 1 . . . . . . . . . . . . . . . . . . . . . System Corruption 3 | . . . . . 3 . . . . . . . . . . . . . . . . . . . . . Parts Lost 105 | . 1 . . . 11 . 12 . 1 . . 8 . 7 . . 8 . 2 . . 12 . 4 . 39 Power 17 | . . . . . 1 . 1 . . . . 2 . 1 . . 2 . . . . 2 . . . 8 Propulsion 51 | . . . . . 9 . 7 . 1 . . 5 . 4 . . 1 . . . . 5 . 2 . 17 Utility 27 | . . . . . 1 . 4 . . . . 1 . 2 . . 4 . 1 . . 4 . 2 . 8 Weapon 10 | . 1 . . . . . . . . . . . . . . . 1 . 1 . . 1 . . . 6 Highest Loss Streak 10 | . 1 . . . 4 . 4 . 1 . . 6 . 7 . . 4 . 2 . . 9 . 2 . 10 To Critical Strikes . | . . . . . . . . . . . . . . . . . . . . . . . . . . . Average Backups 5 | . 7 4 4 12 8 5 4 4 4 4 4 6 9 8 6 7 9 9 9 9 9 9 9 9 9 5 Power . | . . 1 1 . 1 1 1 . . . . . . . 1 1 . . . . . . . 1 1 . Propulsion . | . 1 . . 2 . . . . . . . . . . 2 2 2 2 2 2 2 2 2 1 1 . Utility 2 | . 3 1 1 5 6 4 3 4 4 4 4 6 8 6 2 3 5 6 6 5 6 5 5 5 3 1 Weapon 1 | . 1 2 2 2 . . . . . . . . . . . . . 1 1 . . . . . . 1 Tool/Special . | . . . . . . . . . . . . . . . . . . . . . . . . . . . Unused Backups 26 | . . 4 . . 7 . 3 . . . . . . 1 1 . 1 . . 1 . 2 2 . 2 2 Power 3 | . . 1 . . . . . . . . . . . . 1 . . . . . . . 1 . . . Propulsion 4 | . . . . . . . . . . . . . . . . . 1 . . 1 . 1 1 . . . Utility 12 | . . 2 . . 4 . 3 . . . . . . 1 . . . . . . . 1 . . 1 . Weapon 4 | . . 1 . . 2 . . . . . . . . . . . . . . . . . . . . 1 Tool/Special 3 | . . . . . 1 . . . . . . . . . . . . . . . . . . . 1 1 Average Slot Usage (%) 81 | . 98 89 100 81 64 53 81 86 85 86 80 75 88 78 82 84 78 83 78 76 84 87 94 94 90 79 Engine 1 | . 14 14 14 13 1 . . . . . . . . . . . . . . . . . . . . . Reactor 5 | . . . . . . . . . . . . . . . . . 2 5 5 5 5 7 9 8 8 7 Treads 1 | . 21 12 14 1 . . . . . . . . . . . . . . . . . . . . . . Wheel 2 | . 6 15 14 25 . . . . . . . . . . . . . . . . . . . . . 1 Flight 23 | . . . . . 14 6 26 33 32 33 33 19 17 15 20 21 17 14 15 16 21 25 28 29 30 26 Device 8 | . 2 1 14 1 10 13 12 13 13 13 6 9 11 8 14 15 14 15 15 15 15 13 8 12 18 8 Storage 1 | . 9 3 14 13 5 . . . . . . 4 5 5 5 5 5 5 5 5 5 4 4 4 4 . Processor 20 | . . . . 11 6 6 13 13 13 13 13 11 11 8 5 5 5 5 5 5 5 5 9 8 5 25 Hackware 3 | . . . . . 7 7 11 13 13 13 6 16 17 18 25 26 23 26 23 21 26 20 23 21 17 . Protection 3 | . 16 12 . . . . . . . . 6 . . . . . . . . . . . . . . 3 Ballistic Gun 1 | . 8 5 14 1 . . . . . . . . . . . . . . . . . . . . . 1 Slashing Weapon 1 | . . . . 11 6 6 5 6 6 6 6 5 5 5 5 5 2 . . . . . 3 4 3 . Piercing Weapon 2 | . . . . . . . . . . . . . . . . . 1 5 5 5 5 5 . . . 2 Peak Build Rating 198 | 6 8 33 31 27 47 40 62 64 63 66 66 80 80 88 97 96 106 106 106 107 107 141 159 175 193 198 Average Rating 143 | 4 7 17 25 20 39 37 52 62 62 62 66 63 80 77 93 95 99 105 101 101 107 127 148 171 187 171 On Entrance 77 | . 6 8 31 13 27 31 40 61 63 63 66 66 80 80 84 95 96 106 106 98 107 107 138 154 166 193 Naked Turns . | . . . . . . . . . . . . . . . . . . . . . . . . . . . Heaviest Build 87 | 8 52 59 55 55 53 11 16 18 18 26 26 27 21 33 33 29 41 33 33 36 31 47 51 60 59 87 Greatest Support 80 | 40 40 30 10 26 39 20 38 29 29 29 29 29 23 39 39 38 41 41 41 41 40 56 52 66 68 80 Greatest Overweight (x) 24 | . 3 5 5 5 2 . . . . . . 3 . 4 . . . . . 1 . 1 . 1 . 24 Average Overweight (x) . | . 1 3 5 1 . . . . . . . . . . . . . . . . . . . . . . Largest Inventory Capacity 25 | 5 20 20 20 20 20 5 5 5 5 5 5 10 10 10 10 10 15 10 10 10 10 10 10 10 10 25 Average Capacity 7 | 5 13 9 20 19 9 5 5 5 5 5 5 9 10 10 10 10 12 10 10 10 10 10 10 10 10 6 Most Carried 20 | 1 13 20 20 20 19 5 5 5 5 5 5 10 10 10 10 10 15 10 10 10 10 10 10 10 10 16 Average Carried 6 | . 7 8 15 13 9 4 4 4 5 4 4 7 10 9 8 9 10 9 10 9 10 9 9 9 9 5 Final Capacity 20 | 5 20 20 20 20 5 5 5 5 5 5 5 10 10 10 10 10 10 10 10 10 10 10 10 10 10 5 Final Carried 20 | 1 13 20 9 19 5 5 4 5 5 4 5 10 10 9 9 10 10 10 10 10 10 10 10 9 10 4 Class Distribution -------------------- 62% | Scavenger-Sprinter 9% | Mutant 6% | Scavenger-Scrapper 5% | Scavenger-Mutant 4% | Wizard-Ninja Dominant Class ---------------- Mutant | -10/Materials Subdweller-Mutant | -10/Subcaves Mutant | -9/Recycling Mutant | -9/Scraptown Mutant | -6/Factory Mutant | -6/Waste Scavenger-Sprinter | -6/Factory Hacker-Sprinter | -6/Lower Caves Hacker-Sprinter | -6/Lower Caves Hacker-Sprinter | -6/Zion Scavenger-Sprinter | -5/Proximity Caves Hacker-Scout | -5/Factory Hacker-Scout | -5/Waste Hacker-Scout | -5/Factory Wizard-Ninja | -4/Factory Wizard-Ninja | -4/Waste Wizard-Ninja | -4/Factory Wizard-Scout | -4/Upper Caves Hacker-Scout | -4/Upper Caves Hacker-Scout | -4/Zhirov Wizard-Scout | -3/Proximity Caves Hacker-Ninja | -3/Research Wizard-Scout | -3/Testing Wizard-Ninja | -2/Research Wizard-Ninja | -2/Quarantine Scavenger-Sprinter | -2/Protoforge Resources | -11 -10 -10 -9 -9 -6 -6 -6 -6 -6 -6 -5 -5 -5 -5 -4 -4 -4 -4 -4 -4 -3 -3 -3 -2 -2 -2 ----------- Run | Yrd Mat Sub Rec Scr Fac Was Fac Low Low Zio Pro Fac Was Fac Fac Was Fac Upp Upp Zhi Pro Res Tes Res Qua Frg Matter Collected 6289 | 269 355 120 12 120 340 10 356 30 35 10 10 223 . 195 30 . 357 . 51 . . 486 60 379 59 2782 Remotely . | . . . . . . . . . . . . . . . . . . . . . . . . . . . Salvage Created 7425 | 113 492 125 57 . 580 . 963 . 95 . . 513 . 449 30 . 536 . 28 . . 710 . 418 82 2234 Parts 379 | 7 24 10 6 . 35 . 60 . 9 . . 26 . 22 3 . 19 . . . . 38 . 13 6 101 Haulers Intercepted 5 | . 1 . . . . . 1 . . . . . . . . . 1 . . . . . . 1 . 1 Recyclers Shooed 2 | 1 1 . . . . . . . . . . . . . . . . . . . . . . . . . Parts Field Recycled . | . . . . . . . . . . . . . . . . . . . . . . . . . . . Retrieved Matter . | . . . . . . . . . . . . . . . . . . . . . . . . . . . Parts Self-Destructed 24 | . . 17 . . . . . . 7 . . . . . . . . . . . . . . . . . Prevented . | . . . . . . . . . . . . . . . . . . . . . . . . . . . Kills | -11 -10 -10 -9 -9 -6 -6 -6 -6 -6 -6 -5 -5 -5 -5 -4 -4 -4 -4 -4 -4 -3 -3 -3 -2 -2 -2 ------- Run | Yrd Mat Sub Rec Scr Fac Was Fac Low Low Zio Pro Fac Was Fac Fac Was Fac Upp Upp Zhi Pro Res Tes Res Qua Frg Combat Hostiles Destroyed 97 | . 12 3 1 . 11 . 14 . 4 . . 6 . 5 . . 5 . 1 . . 3 . . . 32 Melee 58 | . . . . . 11 . 14 . 4 . . 6 . 5 . . 5 . 1 . . 3 . . . 9 Guns 34 | . 9 2 1 . . . . . . . . . . . . . . . . . . . . . . 22 Cannons 1 | . 1 . . . . . . . . . . . . . . . . . . . . . . . . . Classes Destroyed 18 | 2 4 1 1 . 2 . . . . . . 1 . 1 . . . . . . . 1 . . . 5 Worker 2 | . . . . . . . . . . . . 1 . . . . 1 . . . . . . . . . Builder 3 | . . . . . . . . . . . . . . 2 . . . . . . . 1 . . . . Tunneler 1 | 1 . . . . . . . . . . . . . . . . . . . . . . . . . . Hauler 5 | . 1 . . . . . 1 . . . . . . . . . 1 . . . . . . 1 . 1 Recycler 7 | 1 . . . . . . 1 . . . . 1 . 1 . . . . . . . 2 . 1 . . Mechanic 5 | . . . . . . . . . . . . . . . . . . . . . . 1 . . . 4 Operator 10 | . . . . . 1 . 2 . . . . . . 1 . . 1 . . . . 2 . . 2 1 Drone 9 | . . . . . . . . . . . . . . . . . . . . . . . . . . 9 Watcher 17 | . 1 . . . . . 4 . . . . 2 . 1 1 . 1 . . . . 2 . 4 1 . Swarmer 26 | . 3 2 . . 3 . 8 . 4 . . 3 . . . . . . 1 . . . . . . 2 Grunt 12 | . 9 . . . 3 . . . . . . . . . . . . . . . . . . . . . Brawler 2 | . . . . . . . . . . . . . . . . . . . . . . . . . . 2 Sentry 11 | . . . 1 . 3 . 3 . . . . 1 . . . . 3 . . . . . . . . . Programmer 18 | . . . . . 2 . 3 . . . . 2 . 5 . . 2 . . . . 3 . . . 1 Hotshot 2 | . . . . . . . . . . . . . . . . . . . . . . . . . . 2 Immortal 1 | . . . . . . . . . . . . . . . . . . . . . . . . . . 1 Striker 6 | . . . . . . . . . . . . . . . . . . . . . . . . . . 6 Executioner 9 | . . . . . . . . . . . . . . . . . . . . . . . . . . 9 Subdweller 1 | . . 1 . . . . . . . . . . . . . . . . . . . . . . . . Thug 1 | . . 1 . . . . . . . . . . . . . . . . . . . . . . . . Best Kill Streak 7 | 2 5 2 1 . 4 . 6 . 4 . . 3 . 2 1 . 3 . 1 . . 4 . 1 2 7 Combat Bots Only 7 | . 5 2 1 . 4 . 4 . 4 . . 3 . 2 . . 3 . 1 . . 2 . . . 7 Max Kills in Single Turn 2 | 1 1 1 1 . 1 . 1 . 1 . . 1 . 1 1 . 1 . 1 . . 1 . 1 1 2 Gunslinging . | . . . . . . . . . . . . . . . . . . . . . . . . . . . Exploded . | . . . . . . . . . . . . . . . . . . . . . . . . . . . Melee 1 | . . . . . 1 . 1 . 1 . . 1 . 1 . . 1 . 1 . . 1 . . . 1 Uniques/NPCs Destroyed . | . . . . . . . . . . . . . . . . . . . . . . . . . . . Combat | -11 -10 -10 -9 -9 -6 -6 -6 -6 -6 -6 -5 -5 -5 -5 -4 -4 -4 -4 -4 -4 -3 -3 -3 -2 -2 -2 -------- Run | Yrd Mat Sub Rec Scr Fac Was Fac Low Low Zio Pro Fac Was Fac Fac Was Fac Upp Upp Zhi Pro Res Tes Res Qua Frg Hostile Shots Fired 1277 | . 73 6 . . 149 . 150 3 28 . 9 77 . 96 8 . 92 . 28 . . 102 . 36 6 414 Missed 577 | . 11 1 . . 61 . 78 2 12 . 8 30 . 28 1 . 47 . 12 . . 46 . 21 4 215 Hits 700 | . 62 5 . . 88 . 72 1 16 . 1 47 . 68 7 . 45 . 16 . . 56 . 15 2 199 Melee 7 | . . . . . . . . . . . . . . . . . . . . . . . . . . 7 Projectile 693 | . 62 5 . . 88 . 72 1 16 . 1 47 . 68 7 . 45 . 16 . . 56 . 15 2 192 AOE 11 | . . . . . . . . . . . . . . 1 . . 4 . . . . 1 . . . 5 Critical Strikes 36 | . 1 . . . 3 . 4 . 1 . . 3 . 5 . . 2 . 1 . . 5 . . . 11 Actively Blocked 11 | . . . . . . . . . . . . . . . . . 1 . 1 . . . . . . 9 Part Disruptions 4 | . . . . . . . . . 1 . . . . 1 . . . . . . . 2 . . . . Damage Taken 16238 | . 681 78 . . 1058 . 990 16 312 . . 833 . 1563 126 . 1181 . 236 . . 1336 98 428 47 7255 Core 3824 | . 75 17 . . 363 . 357 16 70 . . 306 . 650 56 . 339 . 34 . . 315 49 42 . 1135 Absorbed by Shields 21 | . . . . . . . . . . . . . . . 21 . . . . . . . . . . . Redirected to Shielding 241 | . 15 . . . . . . . . . . . . . . . . . . . . . . . . 226 Regen/Repaired (Parts) 803 | . 87 . . . . . 104 . . . . 33 . . . . 107 . . . . 108 . . 29 335 Core Remaining (%) 51 | 100 . . . 63 . . . . . . 5 . . 4 . . . . . . 62 . 72 . . . Volleys Fired 329 | 3 77 58 1 . . . . . . . . . . . . . 9 . . . . . . 5 1 175 Largest 2 | 2 2 2 2 . . . . . . . . . . . . . 1 . . . . . . 1 1 2 Hottest 120 | 70 120 120 90 . . . . . . . . . . . . . 33 . . . . . . 120 113 120 Shots Fired 488 | 6 127 72 2 . . . . . . . . . . . . . 9 . . . . . . 5 1 266 Gun 453 | 6 115 63 2 . . . . . . . . . . . . . 9 . . . . . . . . 258 Cannon 33 | . 10 9 . . . . . . . . . . . . . . . . . . . . . 5 1 8 Launcher 2 | . 2 . . . . . . . . . . . . . . . . . . . . . . . . . Special . | . . . . . . . . . . . . . . . . . . . . . . . . . . . Kinetic 325 | 3 54 . 1 . . . . . . . . . . . . . 9 . . . . . . . . 258 Thermal 161 | 3 71 72 1 . . . . . . . . . . . . . . . . . . . . 5 1 8 Explosive 2 | . 2 . . . . . . . . . . . . . . . . . . . . . . . . . Electromagnetic . | . . . . . . . . . . . . . . . . . . . . . . . . . . . Robot Hit Streak 13 | 3 8 9 1 . . . . . . . . . . . . . 6 . . . . . . 7 . 13 Robot Miss Streak 7 | 1 4 4 1 . . . . . . . . . . . . . 1 . . . . . . 4 . 7 Penetration Max 2 | . . . . . . . . . . . . . . . . . 1 . . . . . . . . 2 Secondary Targets 10 | . 3 1 . . . . . . . . . . . . . . . . . . . . . . . 6 Max Gunslinging Chain 1 | . 1 1 . . . . . . . . . . . . . . . . . . . . . . . 1 Shots Hit Robots 461 | 4 74 12 1 . 33 . 37 . 6 . . 35 . 30 4 . 31 . 1 . . 22 . 13 4 154 Core Hits 205 | 2 22 6 1 . 12 . 20 . 2 . . 12 . 8 2 . 13 . 1 . . 11 . 6 2 85 Critical Kills 10 | . 1 2 . . . . . . . . . . . . . . . . . . . . . . . 7 Critical Parts Destroyed 5 | . . . . . . . . . . . . . . . . . . . . . . . . . . 5 Critical Strikes 26 | . 4 2 . . 2 . . . . . . . . . . . 2 . . . . 3 . . . 13 Burn 3 | . 3 . . . . . . . . . . . . . . . . . . . . . . . . . Meltdown 3 | . 1 1 . . . . . . . . . . . . . . . . . . . . . . . 1 Destroy 12 | . . 1 . . . . . . . . . . . . . . . . . . . . . . . 11 Sever 1 | . . . . . . . . . . . . . . . . . . . . . . . . . . 1 Impale 3 | . . . . . . . . . . . . . . . . . . . . . . 3 . . . . Melee Attacks 586 | . . . 1 . 52 . 88 7 12 1 2 61 . 56 16 . 67 1 8 . 5 87 10 66 17 29 Impact 1 | . . . 1 . . . . . . . . . . . . . . . . . . . . . . . Slashing 446 | . . . . . 52 . 88 7 12 1 2 61 . 56 16 . 49 . . . . . 6 66 17 13 Piercing 139 | . . . . . . . . . . . . . . . . . 18 1 8 . 5 87 4 . . 16 Sneak Attacks 43 | . . . . . 4 . 8 . . . . 5 . 3 . . 3 . . . . 6 . 4 . 10 Combat Hostiles 9 | . . . . . 2 . 4 . . . . 1 . . . . 2 . . . . . . . . . Follow-up Attacks 8 | . . . . . . . 2 . . . . 1 . . . . 1 . . . . 4 . . . . Damage Inflicted 19108 | 66 1010 269 23 . 1653 . 2138 . 247 . . 1610 . 1323 194 . 1430 . 40 . . 1225 . 1023 326 6531 Guns 6380 | 66 862 146 23 . . . . . . . . . . . . . 305 . . . . . . . . 4978 Cannons 509 | . 122 123 . . . . . . . . . . . . . . . . . . . . . 43 . 221 Explosions 18 | . 18 . . . . . . . . . . . . . . . . . . . . . . . . . Melee 12182 | . . . . . 1653 . 2138 . 247 . . 1610 . 1323 194 . 1125 . 40 . . 1225 . 980 326 1321 Ramming 19 | . 8 . . . . . . . . . . . . . . . . . . . . . . . . 11 Kinetic 5810 | 41 463 . 23 . . . . . . . . . . . . . 305 . . . . . . . . 4978 Thermal 1079 | 25 521 269 . . . . . . . . . . . . . . . . . . . . . 43 . 221 Explosive 18 | . 18 . . . . . . . . . . . . . . . . . . . . . . . . . Electromagnetic . | . . . . . . . . . . . . . . . . . . . . . . . . . . . Impact . | . . . . . . . . . . . . . . . . . . . . . . . . . . . Slashing 9681 | . . . . . 1653 . 2138 . 247 . . 1610 . 1323 194 . 1045 . . . . . . 980 326 165 Piercing 2501 | . . . . . . . . . . . . . . . . . 80 . 40 . . 1225 . . . 1156 Highest Corruption 16 | . . . . . 3 1 1 1 1 1 . 2 9 16 1 7 16 16 16 16 16 9 2 . . 6 Average Corruption 1 | . . . . . 1 1 1 1 1 1 . 1 4 11 1 2 10 16 16 16 16 4 2 . . 1 Corruption Purged 20 | . . . . . 3 . 1 . . . . . . 9 . . . . . . . 7 . . . . Corruption Blocked . | . . . . . . . . . . . . . . . . . . . . . . . . . . . Effects 424 | . . . . . . . 5 1 1 . . 8 . 11 1 . 38 4 5 2 5 20 5 . . 318 Message Errors 112 | . . . . . . . . . . . . 2 . 3 . . 8 1 5 . . 3 1 . . 89 Matter Fused 112 | . . . . . . . 2 . . . . 4 . 3 . . 9 2 . 2 1 5 2 . . 82 Heat Flow Errors 40 | . . . . . . . 2 . . . . . . . . . 7 . . . 2 2 . . . 27 Energy Discharges 52 | . . . . . . . . . . . . . . 3 1 . 4 . . . . 4 1 . . 39 Parts Rejected 2 | . . . . . . . . . . . . 1 . . . . . . . . . . . . . 1 Parts Fused 5 | . . . . . . . . . . . . . . . . . . . . . . 1 . . . 4 Data Loss (minor) 64 | . . . . . . . 1 . 1 . . . . 1 . . 5 1 . . . 2 1 . . 52 Data Loss (major) 23 | . . . . . . . . . . . . . . . . . 3 . . . 2 2 . . . 16 Alerts 10 | . . . . . . . . 1 . . . 1 . . . . . . . . . 1 . . . 7 Misdirections 3 | . . . . . . . . . . . . . . 1 . . 2 . . . . . . . . . Weapon Failures 1 | . . . . . . . . . . . . . . . . . . . . . . . . . . 1 Overload Shots . | . . . . . . . . . . . . . . . . . . . . . . . . . . . Overflow Damage 1531 | . 8 . . . 244 . 142 . 63 . . 303 . 230 . . 20 . . . . 189 . 205 77 50 Projectiles 39 | . 8 . . . . . . . . . . . . . . . . . . . . . . . . 31 Explosions . | . . . . . . . . . . . . . . . . . . . . . . . . . . . Melee 1492 | . . . . . 244 . 142 . 63 . . 303 . 230 . . 20 . . . . 189 . 205 77 19 Knockbacks . | . . . . . . . . . . . . . . . . . . . . . . . . . . . Impact . | . . . . . . . . . . . . . . . . . . . . . . . . . . . Kinetic . | . . . . . . . . . . . . . . . . . . . . . . . . . . . Secondary . | . . . . . . . . . . . . . . . . . . . . . . . . . . . Self-Inflicted Damage 9 | . 4 . . . . . . . . . . . . . . . . . . . . . . . . 5 Shots . | . . . . . . . . . . . . . . . . . . . . . . . . . . . Rammed 2 | . 1 . . . . . . . . . . . . . . . . . . . . . . . . 1 Targets Rammed 2 | . 1 . . . . . . . . . . . . . . . . . . . . . . . . 1 Kicked . | . . . . . . . . . . . . . . . . . . . . . . . . . . . Crushed . | . . . . . . . . . . . . . . . . . . . . . . . . . . . Highest Temperature 773 | 27 306 12 30 . . . 229 2 257 2 2 . . . 1 5 237 . . . 228 195 . 210 49 773 Average Temperature 64 | 14 81 6 17 . . . 47 2 64 2 2 . . . 1 3 100 . . . 102 74 . 22 29 123 Received Heat Transfer 1989 | . 309 27 . . 174 . 183 . . . . 45 . . 9 . 78 . 21 . . 18 . 36 . 1089 Effects 1 | . . . . . . . . . . . . . . . . . . . . . . . . . . 1 Matter Decay 1 | . . . . . . . . . . . . . . . . . . . . . . . . . . 1 Siege Activations . | . . . . . . . . . . . . . . . . . . . . . . . . . . . Martial Activations . | . . . . . . . . . . . . . . . . . . . . . . . . . . . Shielding Activations . | . . . . . . . . . . . . . . . . . . . . . . . . . . . Robots Disrupted 3 | . . . . . . . . . . . . 1 . . 1 . 1 . . . . . . . . . Combat Hostiles 3 | . . . . . . . . . . . . 1 . . 1 . 1 . . . . . . . . . Robots Corrupted . | . . . . . . . . . . . . . . . . . . . . . . . . . . . Combat Hostiles . | . . . . . . . . . . . . . . . . . . . . . . . . . . . Parts Fried . | . . . . . . . . . . . . . . . . . . . . . . . . . . . Impact Corruptions . | . . . . . . . . . . . . . . . . . . . . . . . . . . . Robots Melted 4 | . 2 1 . . . . . . . . . . . . . . . . . . . . . . . 1 Combat Hostiles 4 | . 2 1 . . . . . . . . . . . . . . . . . . . . . . . 1 Parts Melted 11 | . 4 2 . . . . . . . . . . . . . . . . . . . . . . . 5 Heat Transferred 2395 | 74 1665 434 . . . . . . . . . . . . . . . . . . . . . 37 . 185 Parts Sabotaged . | . . . . . . . . . . . . . . . . . . . . . . . . . . . Parts Stolen . | . . . . . . . . . . . . . . . . . . . . . . . . . . . Parts Stripped . | . . . . . . . . . . . . . . . . . . . . . . . . . . . Power Chain Reactions . | . . . . . . . . . . . . . . . . . . . . . . . . . . . Alert | -11 -10 -10 -9 -9 -6 -6 -6 -6 -6 -6 -5 -5 -5 -5 -4 -4 -4 -4 -4 -4 -3 -3 -3 -2 -2 -2 ------- Run | Yrd Mat Sub Rec Scr Fac Was Fac Low Low Zio Pro Fac Was Fac Fac Was Fac Upp Upp Zhi Pro Res Tes Res Qua Frg Maximum Alert Level 3 | . . . . . . . 3 . . . . . . . . . 1 . . . . 1 . . . 2 Low Security (%) 20 | 100 100 . 100 . 100 100 13 . . . . 100 100 100 100 100 67 . . . . 80 100 100 100 3 Level 1 27 | . . . . . . . 14 . . . . . . . . . 32 . . . . 19 . . . 32 Level 2 51 | . . . . . . . 62 . . . . . . . . . . . . . . . . . . 63 Level 3 . | . . . . . . . 10 . . . . . . . . . . . . . . . . . . . Level 4 . | . . . . . . . . . . . . . . . . . . . . . . . . . . . Level 5 . | . . . . . . . . . . . . . . . . . . . . . . . . . . . High Security . | . . . . . . . . . . . . . . . . . . . . . . . . . . . Max Security . | . . . . . . . . . . . . . . . . . . . . . . . . . . . Peak Influence 971 | 5 100 . 68 . 112 24 971 . . . . 132 17 118 82 9 312 . . . . 245 179 83 55 476 Initial 114 | . 3 . . . . 24 2 . . . . . 17 4 10 9 6 . . . . . 114 71 18 12 Average 322 | 1 28 . 13 . 39 14 494 . . . . 47 16 55 10 9 125 . . . . 66 140 54 21 378 Influence Increases 8037 | 10 366 85 175 . 527 . 2020 60 135 . . 461 . 423 180 . 867 . 50 . . 554 203 371 180 1370 Destroy 0b10 Robot/C 1820 | . 240 40 20 . 220 . 280 . 80 . . 120 . 100 80 . 100 . 20 . . 60 . . . 460 Destroy 0b10 Robot/NC 295 | 10 10 . . . 5 . 40 . . . . 20 . 25 5 . 20 . . . . 40 . 30 15 75 Destroy Leader 452 | . 54 . . . 70 . 90 . 10 . . 34 . 12 12 . 44 . . . . 14 . 10 2 100 Trap Triggered on 0b10 10 | . . . . . 10 . . . . . . . . . . . . . . . . . . . . . Successful Hack 541 | . 26 . 34 . 40 . 112 . . . . 46 . 95 18 . 25 . . . . 25 58 37 10 15 Select Force Hacks 180 | . . . 120 . . . 30 . . . . . . . . . 30 . . . . . . . . . Disable Machine 300 | . 15 . . . 15 . . . . . . 30 . . 15 . 15 . . . . 15 45 15 60 75 Anti-Garrison Action 400 | . . . . . . . 400 . . . . . . . . . . . . . . . . . . . Destroy Structure 514 | . 21 . 1 . 2 . 33 . . . . 16 . 26 20 . 48 . . . . 100 10 144 18 75 Partial Spotted 735 | . . . . . 60 . 135 . . . . 75 . 60 . . 105 . . . . 45 30 120 60 45 Lose Combat Pursuer 2790 | . . 45 . . 105 . 900 60 45 . . 120 . 105 30 . 480 . 30 . . 255 60 15 15 525 Influence Decreases 7571 | 5 366 90 175 . 456 67 1522 257 169 271 . 412 42 408 174 19 621 125 105 75 . 350 280 466 189 927 Entered New Map 1006 | . 2 3 . . . 47 2 187 59 271 . . 32 3 12 19 3 95 25 75 . . 90 56 14 11 Time Decay 4385 | 5 354 87 175 . 336 20 490 70 80 . . 332 10 262 118 . 368 30 60 . . 294 190 350 126 628 Search Patrol Dispatched 300 | . . . . . . . 300 . . . . . . . . . . . . . . . . . . . Lost Part 884 | . 10 . . . 110 . 120 . 10 . . 80 . 70 . . 80 . 20 . . 56 . 40 . 288 Lost Ally 137 | . . . . . 10 . 10 . 20 . . . . . 44 . 20 . . . . . . 20 13 . Purge Threat 859 | . . . . . . . 600 . . . . . . 73 . . 150 . . . . . . . 36 . Squads Dispatched 103 | . 2 . . . 4 . 21 . . . . 10 . 4 7 . 16 . . . . 12 4 11 3 9 Investigation 63 | . 1 . . . 2 . 18 . . . . 7 . 3 3 . 11 . . . . 5 1 6 1 5 Extermination 27 | . . . . . 2 . 3 . . . . 3 . 1 2 . 2 . . . . 4 3 4 2 1 Reinforcement 13 | . 1 . . . . . . . . . . . . . 2 . 3 . . . . 3 . 1 . 3 Assault . | . . . . . . . . . . . . . . . . . . . . . . . . . . . Garrison . | . . . . . . . . . . . . . . . . . . . . . . . . . . . Intercept . | . . . . . . . . . . . . . . . . . . . . . . . . . . . Searches Triggered 2 | . . . . . . . 2 . . . . . . . . . . . . . . . . . . . Construction Impeded . | . . . . . . . . . . . . . . . . . . . . . . . . . . . Haulers Reinforced 1 | . . . . . . . . . . . . . . . 1 . . . . . . . . . . . Active Scanning Responses . | . . . . . . . . . . . . . . . . . . . . . . . . . . . Cargo Convoy Interrupts 1 | . . . . . . . 1 . . . . . . . . . . . . . . . . . . . Stealth | -11 -10 -10 -9 -9 -6 -6 -6 -6 -6 -6 -5 -5 -5 -5 -4 -4 -4 -4 -4 -4 -3 -3 -3 -2 -2 -2 --------- Run | Yrd Mat Sub Rec Scr Fac Was Fac Low Low Zio Pro Fac Was Fac Fac Was Fac Upp Upp Zhi Pro Res Tes Res Qua Frg Distress Signals 114 | . 1 . . . 1 . 1 . . . . 1 . 4 . . 3 . . . . 3 1 4 2 93 Communications Jammed 38 | . . . . . . . . . . . . . . . 2 . 2 . . . . . . . 15 19 Distress Signals 25 | . . . . . . . . . . . . . . . 2 . 2 . . . . . . . 15 6 Times Spotted 610 | . 18 13 1 . 20 . 80 6 6 . 1 21 6 18 10 4 43 . 7 . . 53 8 48 16 231 Peak Tracking Total 20 | . 6 6 . . 5 . 12 5 4 . 1 7 6 7 6 4 11 . 5 . . 20 4 12 3 14 Tactical Retreats 103 | . . 1 . . 4 . 21 1 1 . . 5 . 2 2 . 13 . 2 . . 11 3 12 2 23 Traps | -11 -10 -10 -9 -9 -6 -6 -6 -6 -6 -6 -5 -5 -5 -5 -4 -4 -4 -4 -4 -4 -3 -3 -3 -2 -2 -2 ------- Run | Yrd Mat Sub Rec Scr Fac Was Fac Low Low Zio Pro Fac Was Fac Fac Was Fac Upp Upp Zhi Pro Res Tes Res Qua Frg Traps Triggered 11 | . 1 . . . 1 . 1 . 1 . . 1 . . 2 . 2 . . . . . 1 . . 1 Indirectly . | . . . . . . . . . . . . . . . . . . . . . . . . . . . Trap Hack Attempts . | . . . . . . . . . . . . . . . . . . . . . . . . . . . Triggered . | . . . . . . . . . . . . . . . . . . . . . . . . . . . Disarmed . | . . . . . . . . . . . . . . . . . . . . . . . . . . . Reprogrammed 1 | . . . . . 1 . . . . . . . . . . . . . . . . . . . . . Reused 1 | . . . . . 1 . . . . . . . . . . . . . . . . . . . . . Traps Extracted . | . . . . . . . . . . . . . . . . . . . . . . . . . . . Installed . | . . . . . . . . . . . . . . . . . . . . . . . . . . . Triggered 1 | . . . . . 1 . . . . . . . . . . . . . . . . . . . . . Machines | -11 -10 -10 -9 -9 -6 -6 -6 -6 -6 -6 -5 -5 -5 -5 -4 -4 -4 -4 -4 -4 -3 -3 -3 -2 -2 -2 ---------- Run | Yrd Mat Sub Rec Scr Fac Was Fac Low Low Zio Pro Fac Was Fac Fac Was Fac Upp Upp Zhi Pro Res Tes Res Qua Frg Machines Disabled 20 | . 1 . . . 1 . . . . . . 2 . . 1 . 1 . . . . 1 3 1 4 5 Max in Single Turn 1 | . 1 . . . 1 . . . . . . 1 . . . . 1 . . . . 1 1 1 1 1 Garrison Access 19 | . . . . . 1 . 4 . . . . 2 . 1 . . 3 . . . . 4 1 3 . . Machines Repaired . | . . . . . . . . . . . . . . . . . . . . . . . . . . . Machines Dismantled . | . . . . . . . . . . . . . . . . . . . . . . . . . . . Machines Sabotaged . | . . . . . . . . . . . . . . . . . . . . . . . . . . . Overloaded Fab Kills . | . . . . . . . . . . . . . . . . . . . . . . . . . . . Hacking | -11 -10 -10 -9 -9 -6 -6 -6 -6 -6 -6 -5 -5 -5 -5 -4 -4 -4 -4 -4 -4 -3 -3 -3 -2 -2 -2 --------- Run | Yrd Mat Sub Rec Scr Fac Was Fac Low Low Zio Pro Fac Was Fac Fac Was Fac Upp Upp Zhi Pro Res Tes Res Qua Frg Machines Accessed 228 | . 7 3 10 7 8 . 39 . 1 . . 19 . 14 9 . 29 2 . 4 . 20 13 21 9 13 Terminals 110 | . 6 . 6 . 4 . 16 . . . . 7 . 10 4 . 14 1 . . . 6 9 12 8 7 Fabricators 21 | . . . . . 2 . 3 . . . . 4 . 1 2 . 2 . . . . 1 2 1 . 3 Repair Stations 14 | . 1 . . . . . 4 . . . . 2 . 1 . . 2 . . . . 3 . . 1 . Recycling Units 38 | . . . 4 . . . 8 . . . . 4 . 1 3 . 6 . . . . 4 . 5 . 3 Scanalyzers 10 | . . . . . 1 . 4 . . . . . . . . . 2 . . . . 2 1 . . . Garrison Access 19 | . . . . . 1 . 4 . . . . 2 . 1 . . 3 . . . . 4 1 3 . . Total Hacks 779 | . 20 4 25 43 29 . 107 . 1 . . 47 . 50 30 . 92 3 . 17 . 55 69 92 50 45 Successful 565 | . 11 4 18 43 17 . 65 . 1 . . 35 . 34 26 . 75 3 . 17 . 47 51 64 30 24 Failed 213 | . 9 . 7 . 12 . 42 . . . . 12 . 16 3 . 17 . . . . 8 18 28 20 21 Catastrophic 30 | . 2 . 1 . 2 . 10 . . . . . . 2 . . 2 . . . . . 2 . 3 6 Database Lockouts 1 | . . . . . . . . . . . . . . . 1 . . . . . . . . . . . Manual 481 | . 18 . 23 . 15 . 59 . . . . 33 . 31 24 . 64 . . . . 29 43 66 37 39 Terminals 504 | . 18 . 20 . 14 . 50 . . . . 27 . 45 20 . 69 2 . . . 26 58 77 46 32 Fabricators 69 | . . . . . 10 . 13 . . . . 11 . 2 7 . 5 . . . . 3 6 4 . 8 Repair Stations 28 | . 2 . . . . . 13 . . . . 2 . 1 . . 2 . . . . 4 . . 4 . Recycling Units 46 | . . . 5 . . . 9 . . . . 4 . 1 3 . 6 . . . . 5 . 8 . 5 Scanalyzers 41 | . . . . . 3 . 14 . . . . . . . . . 7 . . . . 13 4 . . . Garrison Access 25 | . . . . . 2 . 8 . . . . 3 . 1 . . 3 . . . . 4 1 3 . . Terminal Hacks 180 | . . 4 5 43 1 . 10 . 1 . . 5 . 16 5 . 21 3 . 17 . 6 16 17 8 2 Record 51 | . . 1 . 41 . . . . . . . . . . . . . 2 . 5 . . 1 . . 1 Part Schematic 17 | . . . 2 . . . 2 . . . . 1 . 2 2 . 2 . . 4 . 1 . . 1 . Robot Analysis 5 | . . . . . . . . . . . . . . 1 . . . . . 4 . . . . . . Prototype ID Bank 15 | . . . . . . . . . . . . 1 . 3 . . 2 . . 4 . 2 1 1 1 . Open Door 4 | . . 1 . 1 . . . . 1 . . . . . . . . 1 . . . . . . . . Level Access Points 3 | . . . . . . . . . . . . . . 1 . . . . . . . . 1 1 . . Branch Access Points 4 | . . . . . . . . . . . . 1 . 1 . . 1 . . . . . . 1 . . Emergency Access Points 1 | . . . . . . . . . . . . . . . . . . . . . . . 1 . . . Machine Index 1 | . . . . . . . . . . . . . . . . . . . . . . . . 1 . . Terminal Index 10 | . . . 1 . . . . . . . . 1 . 2 . . 1 . . . . 2 1 1 . 1 Fabricator Index 1 | . . . . . . . . . . . . . . . . . 1 . . . . . . . . . Recycling Unit Index 3 | . . . 1 . . . . . . . . . . 1 . . . . . . . . 1 . . . Scanalyzer Index 2 | . . . . . . . . . . . . . . . . . 1 . . . . . 1 . . . Garrison Index 1 | . . . . . . . . . . . . . . . . . 1 . . . . . . . . . Alert Level 7 | . . . . . . . 2 . . . . 1 . 1 . . 1 . . . . . 1 1 . . Unreport Threat 10 | . . . . . . . 4 . . . . . . 2 . . 1 . . . . . . . 3 . Locate Traps 4 | . . . . . . . 1 . . . . . . . . . 1 . . . . . 1 1 . . Reprogram Traps 1 | . . . . . 1 . . . . . . . . . . . . . . . . . . . . . Extermination Status 2 | . . . . . . . . . . . . . . . . . . . . . . . 1 1 . . Recall Extermination 11 | . . . . . . . . . . . . . . . 1 . 2 . . . . 1 2 4 1 . Registered Components 2 | . . . . . . . . . . . . . . . . . . . . . . . 1 1 . . Registered Prototypes 4 | . . . . . . . . . . . . . . 1 1 . 1 . . . . . . 1 . . Zone Layout 18 | . . . 1 . . . 1 . . . . . . 1 1 . 6 . . . . . 3 3 2 . Proto ID Catalog 2 | . . 1 . 1 . . . . . . . . . . . . . . . . . . . . . . Release Object 1 | . . 1 . . . . . . . . . . . . . . . . . . . . . . . . Fabricator Hacks 40 | . . . . . 7 . 5 . . . . 7 . 1 5 . 3 . . . . 2 4 2 . 4 Network Status 4 | . . . . . . . . . . . . 1 . . 1 . . . . . . . 1 1 . . Load Schematic 23 | . . . . . 4 . 4 . . . . 4 . 1 2 . 2 . . . . 1 2 1 . 2 Build 13 | . . . . . 3 . 1 . . . . 2 . . 2 . 1 . . . . 1 1 . . 2 Repair Station Hacks 15 | . 2 . . . . . 8 . . . . . . . . . . . . . . 3 . . 2 . Scan Component 7 | . 1 . . . . . 4 . . . . . . . . . . . . . . 1 . . 1 . Repair 7 | . 1 . . . . . 4 . . . . . . . . . . . . . . 1 . . 1 . Refit 1 | . . . . . . . . . . . . . . . . . . . . . . 1 . . . . Recycling Unit Hacks 2 | . . . 1 . . . . . . . . . . . . . . . . . . . . 1 . . Retrieve Matter 1 | . . . . . . . . . . . . . . . . . . . . . . . . 1 . . Retrieve Components 1 | . . . 1 . . . . . . . . . . . . . . . . . . . . . . . Scanalyzer 34 | . . . . . 1 . 10 . . . . . . . . . 7 . . . . 12 4 . . . Insert Component 15 | . . . . . 1 . 5 . . . . . . . . . 2 . . . . 5 2 . . . Analyze 19 | . . . . . . . 5 . . . . . . . . . 5 . . . . 7 2 . . . Garrison Access Hacks 17 | . . . . . 1 . 2 . . . . 2 . 1 . . 3 . . . . 4 1 3 . . Seal Access 17 | . . . . . 1 . 2 . . . . 2 . 1 . . 3 . . . . 4 1 3 . . Unauthorized Hacks 277 | . 9 . 12 . 7 . 30 . . . . 21 . 16 16 . 41 . . . . 20 26 41 20 18 Terminals 212 | . 9 . 8 . 6 . 16 . . . . 11 . 13 11 . 31 . . . . 14 24 35 20 14 Track 30 | . . . . . . . 2 . . . . . . . 2 . 5 . . . . 2 4 8 4 3 Assimilate 13 | . . . . . 1 . 1 . . . . . . 2 1 . 2 . . . . . 1 2 3 . Botnet 71 | . 3 . 3 . 2 . 6 . . . . 5 . 5 4 . 12 . . . . 5 6 10 5 5 Disrupt 24 | . . . . . . . 2 . . . . . . . . . 5 . . . . 2 5 7 2 1 Operators 5 | . 1 . . . . . . . . . . . . . . . 2 . . . . . 2 . . . Skim 69 | . 5 . 5 . 3 . 5 . . . . 6 . 6 4 . 5 . . . . 5 6 8 6 5 Fabricators 17 | . . . . . 1 . 2 . . . . 4 . 1 2 . 2 . . . . 1 2 1 . 1 Prioritize 6 | . . . . . . . . . . . . 2 . . 1 . 1 . . . . 1 1 . . . Liberate 1 | . . . . . . . . . . . . . . . 1 . . . . . . . . . . . Recompile 10 | . . . . . 1 . 2 . . . . 2 . 1 . . 1 . . . . . 1 1 . 1 Repair Stations 8 | . . . . . . . 2 . . . . 2 . 1 . . 2 . . . . 1 . . . . Mechanics 2 | . . . . . . . . . . . . 1 . 1 . . . . . . . . . . . . Patch 6 | . . . . . . . 2 . . . . 1 . . . . 2 . . . . 1 . . . . Recycling Units 38 | . . . 4 . . . 8 . . . . 4 . 1 3 . 6 . . . . 4 . 5 . 3 Tunnel 6 | . . . 4 . . . 1 . . . . . . . . . 1 . . . . . . . . . Fedlink 32 | . . . . . . . 7 . . . . 4 . 1 3 . 5 . . . . 4 . 5 . 3 Scanalyzers . | . . . . . . . . . . . . . . . . . . . . . . . . . . . Garrison Access 2 | . . . . . . . 2 . . . . . . . . . . . . . . . . . . . Jam 2 | . . . . . . . 2 . . . . . . . . . . . . . . . . . . . Data Cores Recovered 8 | . . . . . . . 2 . . . . . . 1 . . . . . . . 2 . . 2 1 Used 2 | . . . . . . . 1 . . . . . . . . . . . . . . . . . . 1 Hacking Detections 127 | . 6 . 6 . 8 . 25 . . . . 10 . 9 5 . 14 . . . . 9 9 10 8 8 Full Trace Events 10 | . . . . . 1 . 4 . . . . . . 1 . . 2 . . . . . . . 1 1 Feedback Events . | . . . . . . . . . . . . . . . . . . . . . . . . . . . Feedback Blocked . | . . . . . . . . . . . . . . . . . . . . . . . . . . . Robot Schematics Acquired 3 | . . . . . . . . . . 3 . . . . . . . . . . . . . . . . Robots Built . | . . . . . . . . . . . . . . . . . . . . . . . . . . . Authchips . | . . . . . . . . . . . . . . . . . . . . . . . . . . . Time . | . . . . . . . . . . . . . . . . . . . . . . . . . . . Total Robot Build Rating . | . . . . . . . . . . . . . . . . . . . . . . . . . . . Part Schematics Acquired 88 | . . . 2 9 6 1 24 2 3 16 2 1 . 2 2 . 3 . . 4 . 4 2 . 1 4 Parts Built 17 | . . . . . 5 . 1 . . . . 2 . . 3 . 1 . . . . 1 1 . . 3 Authchips 10 | . . . . . 2 . 1 . . . . 2 . . 2 . . . . . . 1 1 . . 1 Time 499 | . . . . . 125 . 35 . . . . 73 . . 76 . 21 . . . . 37 51 . . 81 Total Part Build Rating 95 | . . . . . 20 . 6 . . . . 8 . . 16 . 4 . . . . 9 8 . . 24 Parts Repaired 7 | . 1 . . . . . 4 . . . . . . . . . . . . . . 1 . . 1 . Time 276 | . 26 . . . . . 172 . . . . . . . . . . . . . . 56 . . 22 . Parts Recycled . | . . . . . . . . . . . . . . . . . . . . . . . . . . . Recycled Matter . | . . . . . . . . . . . . . . . . . . . . . . . . . . . Retrieved Matter . | . . . . . . . . . . . . . . . . . . . . . . . . . . . Retrieved Components 1 | . . . 1 . . . . . . . . . . . . . . . . . . . . . . . Parts Scanalyzed 13 | . . . . . 1 . 5 . . . . . . . . . 1 . . . . 4 2 . . . Part Schematics Acquired 10 | . . . . . . . 4 . . . . . . . . . 1 . . . . 3 2 . . . Parts Damaged 3 | . . . . . 1 . 1 . . . . . . . . . . . . . . . 1 . . . Bothacking | -11 -10 -10 -9 -9 -6 -6 -6 -6 -6 -6 -5 -5 -5 -5 -4 -4 -4 -4 -4 -4 -3 -3 -3 -2 -2 -2 ------------ Run | Yrd Mat Sub Rec Scr Fac Was Fac Low Low Zio Pro Fac Was Fac Fac Was Fac Upp Upp Zhi Pro Res Tes Res Qua Frg Used RIF Installer . | . . . . . . . . . . . . . . . . . . . . . . . . . . . Robots Hacked . | . . . . . . . . . . . . . . . . . . . . . . . . . . . Non-combat . | . . . . . . . . . . . . . . . . . . . . . . . . . . . Combat . | . . . . . . . . . . . . . . . . . . . . . . . . . . . Robot Hacks Applied . | . . . . . . . . . . . . . . . . . . . . . . . . . . . Relay Couplers Released 3 | . . . . . . . 3 . . . . . . . . . . . . . . . . . . . Programmers 3 | . . . . . . . 3 . . . . . . . . . . . . . . . . . . . Fabnet Peak Effective % . | . . . . . . . . . . . . . . . . . . . . . . . . . . . Robots Rewired . | . . . . . . . . . . . . . . . . . . . . . . . . . . . Allies Hacked . | . . . . . . . . . . . . . . . . . . . . . . . . . . . Hacks Repelled . | . . . . . . . . . . . . . . . . . . . . . . . . . . . Allies | -11 -10 -10 -9 -9 -6 -6 -6 -6 -6 -6 -5 -5 -5 -5 -4 -4 -4 -4 -4 -4 -3 -3 -3 -2 -2 -2 -------- Run | Yrd Mat Sub Rec Scr Fac Was Fac Low Low Zio Pro Fac Was Fac Fac Was Fac Upp Upp Zhi Pro Res Tes Res Qua Frg Total Allies 14 | . . . . . 1 . 1 . . . . . 1 1 4 . 2 . . . . . . 2 2 . Largest Group 3 | . . . . . 1 . 1 . . . . . 1 1 3 . 1 . . . . . . 1 2 . Highest-Rated Group 141 | . . . . . 10 . 26 . . . . . 31 10 141 . 26 . . . . . . 45 52 . Highest-Rated Ally 47 | . . . . . 10 . 26 . . . . . 31 10 47 . 26 . . . . . . 45 26 . Total Orders 2 | . . . . . . . . . 2 . . . . . . . . . . . . . . . . . EXPLORE 2 | . . . . . . . . . 2 . . . . . . . . . . . . . . . . . Ally Attacks 21 | . . . . . . . . . . . . . 1 . 20 . . . . . . . . . . . Total Damage 548 | . . . . . . . . . . . . . . . 548 . . . . . . . . . . . Kills 4 | . . . . . . . . . . . . . . . 4 . . . . . . . . . . . Allies Corrupted . | . . . . . . . . . . . . . . . . . . . . . . . . . . . Allies Melted 29 | . . 1 . . . . . . . . . . . . . . . . . . . . . . . 28 Intel | -11 -10 -10 -9 -9 -6 -6 -6 -6 -6 -6 -5 -5 -5 -5 -4 -4 -4 -4 -4 -4 -3 -3 -3 -2 -2 -2 ------- Run | Yrd Mat Sub Rec Scr Fac Was Fac Low Low Zio Pro Fac Was Fac Fac Was Fac Upp Upp Zhi Pro Res Tes Res Qua Frg Active Infowar (turns) 48811 | 8 235 139 250 . 402 57 1225 144 163 191 144 841 21 645 691 19 893 77 121 60 102 1159 390 787 378 39669 Optics 40131 | . . 139 250 . . . 325 . . . . . . . . . . . . . . . 2 . . 39415 Sensors 5916 | . . . . . . . . . . . . 624 21 540 691 19 813 77 121 60 102 1098 390 786 318 256 Terrain 2664 | . . . . . . . 672 144 163 191 144 817 21 512 . . . . . . . . . . . . Structural 4914 | . . . . . 402 57 228 . . . . . . 70 691 19 893 77 121 60 102 640 305 783 368 98 Seismic 243 | 8 235 . . . . . . . . . . . . . . . . . . . . . . . . . Triangulation 226 | . . . . . . . . . . . . . . . . . 1 . . . . 225 . . . . Cloaking 28872 | . . . . . . . . . . . . . . . . . . . . . . . . . 259 28613 Jamming 1687 | . . . . . . . . . 52 188 . . . . 649 19 294 . . 16 . . . . 257 212 ECM 1347 | . . . . . . . . . . . . . . . . . . . . . . 555 71 617 77 27 Robot Analysis Total 5 | . . . . . . . . . . . . . . 1 . . . . . 4 . . . . . . Derelict Logs Recovered 9 | . . 2 . 4 . . . . 1 . 1 . . . . . . 1 . . . . . . . . Drone Launches 3 | . . . . . . . . . 3 . . . . . . . . . . . . . . . . . Drone Recoveries 1 | . . . . . . . . . 1 . . . . . . . . . . . . . . . . . Exploration | -11 -10 -10 -9 -9 -6 -6 -6 -6 -6 -6 -5 -5 -5 -5 -4 -4 -4 -4 -4 -4 -3 -3 -3 -2 -2 -2 ------------- Run | Yrd Mat Sub Rec Scr Fac Was Fac Low Low Zio Pro Fac Was Fac Fac Was Fac Upp Upp Zhi Pro Res Tes Res Qua Frg Turns Passed 54529 | 79 1241 1171 806 1916 766 57 1290 148 163 191 144 971 21 761 691 19 893 77 121 60 102 1243 390 787 378 40043 Spaces Moved 29246 | 41 590 777 497 1791 975 147 3003 297 325 689 424 1813 64 1293 808 70 1951 186 248 141 309 2402 1124 2166 1120 5995 Core 204 | 4 . . . . . . . . . . . . . 2 . . . . . . . . . . . 198 Treads 324 | 37 287 . . . . . . . . . . . . . . . . . . . . . . . . . Legs 84 | . . . . . 84 . . . . . . . . . . . . . . . . . . . . . Wheels 3527 | . 303 777 497 1561 2 . . . . . . . . . . . . . . . . . . . . 387 Hover 196 | . . . . . . 1 91 . . . . . . 62 . . . . . . . . . . . 42 Flight 24911 | . . . . 230 889 146 2912 297 325 689 424 1813 64 1229 808 70 1951 186 248 141 309 2402 1124 2166 1120 5368 Fastest Speed 7 | 50 130 95 155 32 26 35 20 24 24 24 24 24 32 29 18 18 26 34 34 28 28 12 22 11 7 7 Average Speed 46 | 149 154 128 155 104 39 35 27 24 24 26 24 30 32 33 32 25 31 34 34 32 28 23 22 18 17 63 Slowest Speed 1250 | 160 240 155 155 155 134 70 60 24 27 27 24 275 32 250 37 26 34 34 34 108 28 99 22 92 19 1250 Overloaded Moves 236 | . . . . . . . . . . . . . . . 3 5 . . . . . 52 . 49 11 116 Propulsion Burnouts . | . . . . . . . . . . . . . . . . . . . . . . . . . . . Robots Hopped 173 | . . . . . 3 . 13 2 1 . . 15 . 6 2 . 30 . . . . 20 13 23 8 37 Potential Cave-ins 32 | . . . . . . . . . . . . . . . . . . . . . . . . . . 32 Cave-ins Triggered 1 | . . . . . . . . . . . . . . . . . . . . . . . . . . 1 Teleports 3 | . . . . . . . . . . . . . . . . . . . . . . . . . 1 2 Exploration Rate (%) 61 | 3 95 43 98 91 22 85 72 51 64 82 60 44 69 37 27 71 56 42 50 60 61 57 91 71 83 62 Regions Visited 26 Branch Regions 14 Pre-discovered Areas 29 | . 3 3 5 8 . . 3 . . 1 . 1 . . . . 1 . . 3 . . . 1 . . Known Exits Taken 16 | . 1 1 1 1 . . 1 . . . 1 . . 1 . . 1 1 1 1 1 1 1 1 1 . Unknown Exits Taken 4 | 1 . . . . . . . 1 1 1 . . . . . . . . . . . . . . . . Scrap Searched 21 | . . 8 . 5 . . . 1 1 3 2 . . . . . . . 1 . . . . . . . Spaces Dug 224 | . . . 1 . 2 . 33 7 1 . 2 8 . 13 10 . 23 1 4 . 5 50 5 44 6 9 Terrain Destroyed 286 | . 17 . 1 . 2 . 33 7 1 . 2 8 . 13 10 . 24 1 4 . 5 50 5 48 6 49 Melee 222 | . . . 1 . 2 . 33 7 1 . 2 8 . 13 10 . 23 1 4 . 5 50 5 44 6 7 Projectile 47 | . . . . . . . . . . . . . . . . . 1 . . . . . . 4 . 42 AOE 17 | . 17 . . . . . . . . . . . . . . . . . . . . . . . . . Terrain Rammed . | . . . . . . . . . . . . . . . . . . . . . . . . . . . Walls Destroyed . | . . . . . . . . . . . . . . . . . . . . . . . . . . . Machines Disabled . | . . . . . . . . . . . . . . . . . . . . . . . . . . . Actions | -11 -10 -10 -9 -9 -6 -6 -6 -6 -6 -6 -5 -5 -5 -5 -4 -4 -4 -4 -4 -4 -3 -3 -3 -2 -2 -2 --------- Run | Yrd Mat Sub Rec Scr Fac Was Fac Low Low Zio Pro Fac Was Fac Fac Was Fac Upp Upp Zhi Pro Res Tes Res Qua Frg Total 68498 | 50 789 877 529 1846 1285 151 3339 361 391 698 462 2123 63 1535 1213 70 2113 196 268 155 313 2904 1240 2413 1263 41851 Wait 37709 | . 86 9 25 2 189 . 204 51 51 3 36 226 . 155 351 . 75 6 13 . . 360 63 180 102 35522 Move 28897 | 40 589 776 496 1790 969 146 2977 292 322 688 423 1784 63 1283 804 69 1890 185 247 140 308 2366 1098 2121 1104 5927 Hop 152 | . . . . . 3 . 12 2 1 . . 14 . 3 2 . 30 . . . . 15 12 21 7 30 Pick Up 134 | 1 11 5 4 28 8 2 7 1 . 1 1 8 . 6 5 1 6 1 . 3 . 15 5 2 8 5 Fast Attach 241 | 6 6 8 . 6 19 1 25 2 2 . . 18 . 11 5 . 11 . . 5 . 24 18 2 5 67 Attach 92 | . 1 2 . 5 13 1 7 2 . 1 . 4 . 5 4 . 7 1 . 1 . 9 3 4 4 18 Detach 34 | . 2 1 . 1 3 . 3 1 . . . . . . . . 5 . . 1 . 2 2 . . 13 Swap 67 | . 11 2 1 1 5 . 4 . 1 1 . 1 . 2 3 . 3 . . . . 9 5 9 6 3 Drop 225 | . 5 14 1 13 24 1 14 3 2 3 . 8 . 14 7 . 9 1 . 5 . 23 24 3 9 42 Fire 329 | 3 77 58 1 . . . . . . . . . . . . . 9 . . . . . . 5 1 175 Melee 576 | . . . 1 . 52 . 86 7 12 1 2 60 . 56 16 . 66 1 8 . 5 81 10 66 17 29 Ram 2 | . 1 . . . . . . . . . . . . . . . . . . . . . . . . 1 Kick . | . . . . . . . . . . . . . . . . . . . . . . . . . . . Crush . | . . . . . . . . . . . . . . . . . . . . . . . . . . . Escape Stasis 33 | . . . . . . . . . . . . . . . 14 . . . . . . . . . . 19 Rewire 2 | . . . . . . . . . . . . . . . 2 . . . . . . . . . . . Trap . | . . . . . . . . . . . . . . . . . . . . . . . . . . . Miscellaneous 5 | . . 2 . . . . . . . . . . . . . . 2 1 . . . . . . . . Route ------- -11/Scrapyard -10/Materials (discovered 6 exits: [*Mat x3] / [*Min x2] / *Sub) -10/Subcaves (discovered 3 exits: *Mat x2 / *Rec) -9/Recycling (discovered 2 exits: [*Fac] / *Scr) -9/Scraptown (discovered 2 exits: *Fac x2) -6/Factory (discovered 4 exits: *Fac x2 / Low x2) -6/Waste -6/Factory (discovered 6 exits: *Fac x4 / *Low x2) -6/Lower Caves -6/Lower Caves (discovered 2 exits: Fac / [*Zio]) -6/Zion (discovered 2 exits: [Dee] / [*Pro]) -5/Proximity Caves -5/Factory (discovered 5 exits: *Fac x3 / *Upp x2) -5/Waste -5/Factory (discovered 6 exits: *Fac x4 / Upp x2) -4/Factory (discovered 7 exits: *Res x4 / *Upp x2 / Ext) -4/Waste -4/Factory (discovered 8 exits: *Res x4 / *Upp x2 / *Ext x2) -4/Upper Caves -4/Upper Caves (discovered 2 exits: Res / *Zhi) -4/Zhirov -3/Proximity Caves -3/Research (discovered 6 exits: Res x3 / Arm / *Tes x2) -3/Testing -2/Research (discovered 5 exits: *Acc x3 / *Qua x2) -2/Quarantine (discovered 3 exits: *Acc / *Sec / *Frg) -2/Protoforge (discovered 1 exit: Acc) History --------- Turn | Location | Event 11 | -11/Scrapyard | Discovered new exit (range 15) 80 | -11/Scrapyard | Entered Materials 274 | -10/Materials | Discovered new exit (range 5) 313 | -10/Materials | Build established: Mutant 415 | -10/Materials | Discovered new exit (range 8) 452 | -10/Materials | Repaired Lgt. Treads 562 | -10/Materials | Discovered new exit (range 5) 580 | -10/Materials | Derelicts attacked the area 886 | -10/Materials | Discovered new exit (range 4) 970 | -10/Materials | Learned location of Mines (-8) 979 | -10/Materials | Discovered new exit (range 15) 1104 | -10/Materials | Learned 2 Mines zone layouts 1132 | -10/Materials | Learned 2 Mines zone layouts 1159 | -10/Materials | Learned location of Recycling (-9) 1179 | -10/Materials | Loaded intel: 21 non-interactive machine locations 1211 | -10/Materials | Identified exit to Subcaves 1251 | -10/Materials | Loaded intel: 7 terminal locations 1321 | -10/Materials | Entered Subcaves 1322 | -10/Subcaves | Approached by a straggling Scientist 1322 | -10/Subcaves | Identified exit to Materials 1322 | -10/Subcaves | Identified exit to Recycling 1396 | -10/Subcaves | Ambushed by swarm of Subdwellers 1480 | -10/Subcaves | Learned location of Zion (-6) 1480 | -10/Subcaves | Met a Zionite searching for "candidates" 1586 | -10/Subcaves | Visited 4L-MR0's lab 1731 | -10/Subcaves | Build established: Subdweller-Mutant 1820 | -10/Subcaves | Lost 3 allies 1835 | -10/Subcaves | A swath of the cavern ceiling suddenly collapsed 2082 | -10/Subcaves | A swath of the cavern ceiling suddenly collapsed 2195 | -10/Subcaves | Found SUBCON Basin 2479 | -10/Subcaves | Build established: Mutant 2492 | -10/Subcaves | Entered Recycling 2957 | -9/Recycling | Discovered new exit (range 16) 2974 | -9/Recycling | Learned 2 Materials zone layouts 2996 | -9/Recycling | Scanned before Scraplab entrance 3018 | -9/Recycling | Entered Scraplab 3058 | -9/Recycling | Learned Materials emergency access door positions 3088 | -9/Recycling | Identified exit to Scraptown 3118 | -9/Recycling | Learned Storage stockpile data 3119 | -9/Recycling | Learned location of 3 exits from Materials 3129 | -9/Recycling | Learned Storage emergency access door positions 3148 | -9/Recycling | Learned location of 2 exits from Materials 3179 | -9/Recycling | Learned location of 1 exit from Recycling 3298 | -9/Recycling | Entered Scraptown 3371 | -9/Scraptown | Visited Cyclists 3430 | -9/Scraptown | Scanned Subdweller tech in exchange for log data 3433 | -9/Scraptown | Learned 12 Research zone layouts 3435 | -9/Scraptown | Learned location of Quarantine (-2) 3457 | -9/Scraptown | Discovered new exit (range 11) 3800 | -9/Scraptown | Visited SPCMW 3856 | -9/Scraptown | Visited Symbiants 3874 | -9/Scraptown | Tech Extrapolator generated special schematic: Machine Rigger 4013 | -9/Scraptown | Visited Awakened 4051 | -9/Scraptown | Visited UFD Registry 4051 | -9/Scraptown | Registered with UFD as "Flakdome" 4066 | -9/Scraptown | Visited Shadow of the Wyrm 4084 | -9/Scraptown | Visited Fellowship of the Rings 4105 | -9/Scraptown | Visited The Evicted 4130 | -9/Scraptown | Entered Cyclist Reading Room 4133 | -9/Scraptown | Learned location of Exiles (-9) 4192 | -9/Scraptown | Visited Derelict Rescue Squad 4198 | -9/Scraptown | Found DRS Beacon 4220 | -9/Scraptown | Visited Supply Room 4253 | -9/Scraptown | Visited Chapter 10 4296 | -9/Scraptown | Delivered Scrap Shield to a Scientist 4361 | -9/Scraptown | Tech Extrapolator generated special schematic: Deep Structural Scanner 4384 | -9/Scraptown | Visited Sword Containment 4422 | -9/Scraptown | Visited Scrap Suit Storage 4441 | -9/Scraptown | Visited A0-MCA Data Center 4448 | -9/Scraptown | Given a C rating by A0-MCA 4453 | -9/Scraptown | Found A0-MCA's Component Scanner 4471 | -9/Scraptown | Visited Research Penetration Think Tank 4497 | -9/Scraptown | Visited Observation Area 4547 | -9/Scraptown | Visited Science Guys 4592 | -9/Scraptown | Visited Cartography Club 4639 | -9/Scraptown | Found Surveybot 17 Chip 4661 | -9/Scraptown | Learned location of Cetus (-4) 4661 | -9/Scraptown | Learned 16 Factory zone layouts 4661 | -9/Scraptown | Learned 12 Research zone layouts 4661 | -9/Scraptown | Learned 4 Access zone layouts 4661 | -9/Scraptown | Learned 8 Access zone layouts 4661 | -9/Scraptown | Learned 4 Recycling zone layouts 4661 | -9/Scraptown | Learned 12 Lower Caves zone layouts 4661 | -9/Scraptown | Learned 16 Upper Caves zone layouts 4661 | -9/Scraptown | Learned 16 Proximity Caves zone layouts 4661 | -9/Scraptown | Learned Research emergency access door positions 4661 | -9/Scraptown | Learned location of 2 exits from Proximity Caves 4661 | -9/Scraptown | Learned location of 3 exits from Proximity Caves 4661 | -9/Scraptown | Identified exit to Factory 4703 | -9/Scraptown | Found Deep Structural Scanner 5148 | -9/Scraptown | Met Optimus 5148 | -9/Scraptown | Accepted into 0bPrime 5214 | -9/Scraptown | Entered Factory 5214 | -6/Factory | Evolved 8 slots: Propulsion x4, Utility x4 5215 | -6/Factory | Identified exit to Lower Caves 5216 | -6/Factory | Identified exit to Factory 5447 | -6/Factory | Lost 3 parts (3n) 5488 | -6/Factory | Discovered exit to Factory (range 9) 5662 | -6/Factory | Fabricated Lrn. Terrain Scanner (x2) 5707 | -6/Factory | Fabricated Deep Structural Scanner (x1) 5735 | -6/Factory | Fabricated Flight Unit (x2) 5832 | -6/Factory | Lost 4 parts (3n1u) 5956 | -6/Factory | Lost 4 parts (1p3n) 5980 | -6/Factory | Sucked down chute 5980 | -6/Factory | Entered Waste 5980 | -6/Waste | The area was eerily silent 6033 | -6/Waste | Discovered new exit (range 11) 6037 | -6/Waste | Entered Factory 6053 | -6/Factory | Discovered exit to Factory (range 19) 6096 | -6/Factory | Loaded intel: 8 recycling unit locations 6167 | -6/Factory | Learned location of Protoforge (-2) 6200 | -6/Factory | Spotted B-75 Beast 6369 | -6/Factory | Core integrity fell below 50% 6416 | -6/Factory | Tech Extrapolator generated special schematic: Energy Deflector 6439 | -6/Factory | Discovered exit to Factory (range 20) 6594 | -6/Factory | Build established: Scavenger-Sprinter 6595 | -6/Factory | Learned 2 Upper Caves zone layouts 6659 | -6/Factory | Loaded intel: 5 fabricator locations 6711 | -6/Factory | Loaded intel: 6 repair station locations 6737 | -6/Factory | Search patrols dispatched 6747 | -6/Factory | Discovered exit to Factory (range 18) 6752 | -6/Factory | Lost 4 parts (2n2u) 6754 | -6/Factory | Learned location of 1 exit from Cetus 6813 | -6/Factory | Learned Factory fabricator intel 6821 | -6/Factory | Repaired Broken Nuclear Pulse Thruster 6847 | -6/Factory | Loaded intel: 26 terminal locations 6855 | -6/Factory | Repaired VTOL Module 6888 | -6/Factory | Repaired VTOL Module 6892 | -6/Factory | Loaded intel: 53 interactive machine locations 6929 | -6/Factory | Discovered exit to Lower Caves (range 19) 6946 | -6/Factory | Learned Factory fabricator intel 7073 | -6/Factory | Allied Derelicts emerged from ambush trap array 7087 | -6/Factory | Search patrols dispatched 7087 | -6/Factory | Lost 3 parts (3n) 7117 | -6/Factory | Cargo convoy interrupted 7173 | -6/Factory | Core integrity fell below 20% 7184 | -6/Factory | Repaired Lgt. Nuclear Core? 7299 | -6/Factory | Fabricated Nuclear Pulse Array (x1) 7327 | -6/Factory | Entered Lower Caves 7329 | -6/Lower Caves | UFD Scientist delivered a prototype 7332 | -6/Lower Caves | Found Prototype Protection 7332 | -6/Lower Caves | Identified Enh. Scrap Shield 7425 | -6/Lower Caves | Discovered new exit (range 19) 7427 | -6/Lower Caves | Encountered a Warlord checkpoint 7475 | -6/Lower Caves | Entered another Lower Caves area 7497 | -6/Lower Caves | Lost 3 allies 7542 | -6/Lower Caves | Learned Factory security intel 7550 | -6/Lower Caves | Build established: Hacker-Sprinter 7568 | -6/Lower Caves | Discovered exit to Factory (range 7) 7636 | -6/Lower Caves | Discovered new exit (range 11) 7638 | -6/Lower Caves | Entered Zion 7644 | -6/Zion | Given the Hacking Drone Bay 7656 | -6/Zion | Discovered new exit (range 15) 7668 | -6/Zion | System corruption cleaned by Quarantine Array 7714 | -6/Zion | Discovered new exit (range 20) 7739 | -6/Zion | Turned away by Imprinter 7829 | -6/Zion | Entered Proximity Caves 7863 | -5/Proximity Caves | Spotted B-75 Beast 7973 | -5/Proximity Caves | Entered Factory 7973 | -5/Factory | Evolved 2 slots: Utility x2 7974 | -5/Factory | Identified exit to Upper Caves 7976 | -5/Factory | Loaded intel: 6 fabricator locations 7983 | -5/Factory | Discovered new exit (range 7) 8004 | -5/Factory | Discovered new exit (range 19) 8010 | -5/Factory | Identified exit to Factory 8121 | -5/Factory | Loaded intel: 8 recycling unit locations 8337 | -5/Factory | Lost 6 parts (1p4n1u) 8387 | -5/Factory | Fabricated Nuclear Pulse Array (x1) 8518 | -5/Factory | Learned location of Upper Caves (-5) 8568 | -5/Factory | Fabricated Multitool (x1) 8578 | -5/Factory | Learned Research stockpile data 8704 | -5/Factory | Learned 8 Research zone layouts 8805 | -5/Factory | Learned Research emergency access door positions 8851 | -5/Factory | Build established: Hacker-Scout 8944 | -5/Factory | Sucked down chute 8944 | -5/Factory | Entered Waste 8945 | -5/Waste | Met a frightened Derelict 8946 | -5/Waste | Spotted C-40 Crusher 8951 | -5/Waste | Spotted C-40 Crusher 8953 | -5/Waste | Spotted C-40 Crusher 8958 | -5/Waste | Spotted C-40 Crusher 8959 | -5/Waste | EMP discharged 8959 | -5/Waste | Discovered new exit (range 16) 8959 | -5/Waste | Spotted C-40 Crusher 8959 | -5/Waste | Spotted C-40 Crusher 8964 | -5/Waste | Identified exit to Factory 8965 | -5/Waste | Entered Factory 8967 | -5/Factory | Loaded intel: 6 fabricator locations 9139 | -5/Factory | Discovered exit to Factory (range 16) 9239 | -5/Factory | Loaded intel: 8 recycling unit locations 9384 | -5/Factory | Learned Armory stockpile data 9454 | -5/Factory | Learned 2 Upper Caves zone layouts 9472 | -5/Factory | Core integrity fell below 50% 9482 | -5/Factory | System corruption reached 10% 9491 | -5/Factory | Core integrity fell below 20% 9515 | -5/Factory | Learned Quarantine emergency access door positions 9518 | -5/Factory | Lost 7 parts (1p4n2u) 9604 | -5/Factory | Learned 2 Upper Caves zone layouts 9634 | -5/Factory | Learned Research trap positions 9674 | -5/Factory | Learned location of 2 exits from Factory 9726 | -5/Factory | Entered another Factory area 9726 | -4/Factory | Evolved 2 slots: Utility x2 9727 | -4/Factory | Identified exit to Research 9727 | -4/Factory | Identified exit to Upper Caves 9728 | -4/Factory | Identified exit to Extension 9762 | -4/Factory | Fabricated Adv. Hacking Suite (x1) 9789 | -4/Factory | Fabricated Imp. Surge Thruster (x2) 10060 | -4/Factory | Build established: Wizard-Ninja 10120 | -4/Factory | Loaded intel: 8 recycling unit locations 10230 | -4/Factory | Discovered exit to Research (range 11) 10291 | -4/Factory | Central database locked down 10417 | -4/Factory | Sucked down chute 10417 | -4/Factory | Entered Waste 10422 | -4/Waste | Spotted C-40 Crusher 10422 | -4/Waste | Spotted C-40 Crusher 10427 | -4/Waste | Spotted C-40 Crusher 10432 | -4/Waste | EMP discharged 10434 | -4/Waste | Spotted C-40 Crusher 10434 | -4/Waste | Spotted C-40 Crusher 10434 | -4/Waste | Discovered new exit (range 10) 10436 | -4/Waste | Identified exit to Factory 10436 | -4/Waste | Entered Factory 10486 | -4/Factory | Discovered exit to Upper Caves (range 8) 10569 | -4/Factory | Loaded intel: 8 recycling unit locations 10587 | -4/Factory | Fabricated Deep Structural Scanner? 10848 | -4/Factory | System corruption reached 10% 10855 | -4/Factory | Learned location of 2 exits from Proximity Caves 10919 | -4/Factory | Learned Testing security intel 10948 | -4/Factory | Lost 4 parts (1p2u1w) 10972 | -4/Factory | Learned Research emergency access door positions 11014 | -4/Factory | Loaded intel: 27 terminal locations 11066 | -4/Factory | Spotted B-86 Titan 11072 | -4/Factory | Learned 4 Research zone layouts 11089 | -4/Factory | Discovered exit to Research (range 6) 11091 | -4/Factory | Learned 8 Quarantine zone layouts 11109 | -4/Factory | Found Prototype Processor 11109 | -4/Factory | Identified Exp. Targeting Computer 11120 | -4/Factory | Allied Derelicts emerged from ambush trap array 11148 | -4/Factory | Discovered exit to Research (range 14) 11206 | -4/Factory | Learned Armory garrison access intel 11209 | -4/Factory | Spotted B-86 Titan 11329 | -4/Factory | Entered Upper Caves 11330 | -4/Upper Caves | Identified exit to Upper Caves 11375 | -4/Upper Caves | Learned Research terminal intel 11406 | -4/Upper Caves | Entered another Upper Caves area 11407 | -4/Upper Caves | Discovered new exit (range 148) 11445 | -4/Upper Caves | Attracted the attention of an 0b10 checkpoint 11527 | -4/Upper Caves | Identified exit to Zhirov 11527 | -4/Upper Caves | Entered Zhirov 11527 | -4/Zhirov | Discovered new exit (range 3) 11528 | -4/Zhirov | Identified exit to Proximity Caves 11534 | -4/Zhirov | Met Zhirov 11541 | -4/Zhirov | Learned location of Command (-1) 11543 | -4/Zhirov | Zhirov requested help retrieving the SGEMP Prototype 11548 | -4/Zhirov | Found Alien Artifact 11548 | -4/Zhirov | Identified Integrated Dissipator 11548 | -4/Zhirov | Installed Integrated Dissipator, increased core heat dissipation (+20) 11554 | -4/Zhirov | Found Alien Artifact 11587 | -4/Zhirov | Entered Proximity Caves 11689 | -3/Proximity Caves | Entered Research 11689 | -3/Research | Evolved 2 slots: Power x1, Propulsion x1 11690 | -3/Research | Identified exit to Armory 11691 | -3/Research | Identified exit to Testing 11691 | -3/Research | Identified exit to Research 11692 | -3/Research | Loaded intel: 80 trap records 11695 | -3/Research | Loaded intel: 23 terminal locations 11707 | -3/Research | Spotted B-86 Titan 11752 | -3/Research | Repaired Nuclear Pulse Array 11864 | -3/Research | Fabricated Cld. Q-thruster (x1) 11891 | -3/Research | Loaded intel: 5 recycling unit locations 11951 | -3/Research | Found Prototype Hackware 11984 | -3/Research | Identified Exp. System Shield 11984 | -3/Research | Identified Transdimensional Reconstructor 11990 | -3/Research | Discovered exit to Testing (range 12) 12063 | -3/Research | Discovered exit to Research (range 19) 12082 | -3/Research | Build established: Hacker-Ninja 12501 | -3/Research | Lost 9 parts (1p4n4u) 12521 | -3/Research | Spotted B-86 Titan 12552 | -3/Research | Lost 3 parts (1p1n1w) 12588 | -3/Research | Learned 8 Research zone layouts 12637 | -3/Research | Learned 4 Research zone layouts 12676 | -3/Research | Learned 8 Research zone layouts 12728 | -3/Research | Learned location of 1 exit from Armory 12762 | -3/Research | Learned 8 Access zone layouts 12799 | -3/Research | Found Prototype Device 12799 | -3/Research | Identified Exp. ECM Suite 12807 | -3/Research | Learned 4 Research zone layouts 12930 | -3/Research | Build established: Wizard-Sprinter 12932 | -3/Research | Entered Testing 12944 | -3/Testing | Found Prototype Hackware 12944 | -3/Testing | Identified Ghost Barrier 12992 | -3/Testing | Found Prototype Device 12992 | -3/Testing | Identified Exp. Thermal Defense Suite 13058 | -3/Testing | Found Prototype Ballistic Cannon 13058 | -3/Testing | Identified Omega Cannon 13093 | -3/Testing | Found Prototype Processor 13093 | -3/Testing | Identified Spectral Analyzer 13136 | -3/Testing | Found Prototype Hackware 13145 | -3/Testing | Learned Access fabricator intel 13147 | -3/Testing | Identified Exp. Hacking Suite 13177 | -3/Testing | Loaded intel: 1 garrison access location 13193 | -3/Testing | Spotted Alpha 7 13200 | -3/Testing | Learned 4 Quarantine zone layouts 13214 | -3/Testing | Learned Quarantine interactive machine intel 13218 | -3/Testing | Learned Research stockpile data 13233 | -3/Testing | Learned Access garrison access intel 13246 | -3/Testing | Build established: Wizard-Scout 13258 | -3/Testing | Learned location of 1 exit from Armory 13302 | -3/Testing | Fabricated Graviton Reactor? 13322 | -3/Testing | Entered Research 13322 | -2/Research | Evolved 2 slots: Propulsion x1, Utility x1 13323 | -2/Research | Identified exit to Quarantine 13324 | -2/Research | Identified exit to Access 13339 | -2/Research | Loaded intel: 5 recycling unit locations 13376 | -2/Research | Spotted B-90 Cyclops 13396 | -2/Research | Found Exp. Hacking Suite 13570 | -2/Research | Spotted B-90 Cyclops 13602 | -2/Research | Build established: Wizard-Ninja 13663 | -2/Research | Learned Research emergency access door positions 13712 | -2/Research | Loaded intel: 4 repair station locations 13781 | -2/Research | Learned Research stockpile data 13802 | -2/Research | Learned Access interactive machine intel 13814 | -2/Research | Learned Research emergency access door positions 13815 | -2/Research | Learned 4 Access zone layouts 13828 | -2/Research | Learned 4 Research zone layouts 13881 | -2/Research | Loaded intel: 91 trap records 14108 | -2/Research | Spotted B-90 Cyclops 14109 | -2/Research | Entered Quarantine 14110 | -2/Quarantine | Identified exit to Section 7 14110 | -2/Quarantine | Identified exit to Protoforge 14112 | -2/Quarantine | Loaded intel: 24 interactive machine locations 14130 | -2/Quarantine | Found Alien Slashing Weapon 14130 | -2/Quarantine | Identified Sigix Broadsword 14224 | -2/Quarantine | Repaired Q-thruster 14318 | -2/Quarantine | Found Alien Artifact 14318 | -2/Quarantine | Identified Dimensional Node Initializer 14318 | -2/Quarantine | Initialized slip node 14320 | -2/Quarantine | Found Dimensional Node Initializer 14321 | -2/Quarantine | Found Transdimensional Reconstructor 14328 | -2/Quarantine | Found Alien Artifact 14330 | -2/Quarantine | Found Alien Artifact 14331 | -2/Quarantine | Learned Section 7 trap positions 14360 | -2/Quarantine | Found Alien Artifact 14361 | -2/Quarantine | Identified Hpw. Transdimensional Reconstructor 14361 | -2/Quarantine | Warped through subspace to slip node 14384 | -2/Quarantine | Identified Subatomic Replicator 14384 | -2/Quarantine | Used Subatomic Replicator to create Alien Artifact 14410 | -2/Quarantine | Spotted Fortress 14435 | -2/Quarantine | Learned Access emergency access door positions 14474 | -2/Quarantine | Learned Research stockpile data 14487 | -2/Quarantine | Entered Protoforge 14488 | -2/Protoforge | Spotted B-90 Cyclops 14668 | -2/Protoforge | Superfortress began startup sequence 14696 | -2/Protoforge | Spotted EXE-6 14699 | -2/Protoforge | Lost 3 parts (3n) 14705 | -2/Protoforge | UFD initiated attack on Protoforge 14705 | -2/Protoforge | Loaded intel: 3 recycling unit locations 14724 | -2/Protoforge | Spotted EXE-6 14725 | -2/Protoforge | Initialized slip node 14750 | -2/Protoforge | Identified Supercharged TR 14750 | -2/Protoforge | Warped through subspace to slip node 14751 | -2/Protoforge | Core integrity fell below 50% 14751 | -2/Protoforge | Optimus greeted in Protoforge 14781 | -2/Protoforge | Lost 10 parts (2p5n2u1w) 14781 | -2/Protoforge | Lost 10 allies 14794 | -2/Protoforge | P-80 Master assimilated allied 02F10-D 14837 | -2/Protoforge | Met 7R-MNS 14873 | -2/Protoforge | Lost 7 allies 14899 | -2/Protoforge | Fabricated Enh. Nova Cannon (x2) 14934 | -2/Protoforge | Spotted Striker 14942 | -2/Protoforge | Spotted Striker 14949 | -2/Protoforge | Destroyed Striker 14983 | -2/Protoforge | Lost 3 parts (1p1n1u) 14987 | -2/Protoforge | Spotted Executioner 14996 | -2/Protoforge | Spotted Executioner 15010 | -2/Protoforge | Forge Plexus network access discovered 15023 | -2/Protoforge | Destroyed 7 combat bots 15023 | -2/Protoforge | Spotted Decapitator 15026 | -2/Protoforge | Lost 4 allies 15029 | -2/Protoforge | Spotted Decapitator 15029 | -2/Protoforge | Spotted Decapitator 15116 | -2/Protoforge | Spotted Executioner 15123 | -2/Protoforge | Spotted Striker 15144 | -2/Protoforge | Spotted Striker 15151 | -2/Protoforge | Spotted Striker 15157 | -2/Protoforge | Spotted Striker 15161 | -2/Protoforge | Spotted Striker 15164 | -2/Protoforge | Spotted Striker 15165 | -2/Protoforge | Destroyed Striker 15181 | -2/Protoforge | Spotted Executioner 15186 | -2/Protoforge | Spotted Executioner 15223 | -2/Protoforge | Lost 5 allies 15251 | -2/Protoforge | Spotted Executioner 15252 | -2/Protoforge | Spotted Executioner 15252 | -2/Protoforge | Spotted Hotshot 15252 | -2/Protoforge | Spotted Executioner 15283 | -2/Protoforge | Build established: Scavenger-Sprinter 15316 | -2/Protoforge | Spotted Striker 15342 | -2/Protoforge | Learned 8 Access zone layouts 15367 | -2/Protoforge | Learned 8 Access zone layouts 15380 | -2/Protoforge | Learned Research trap positions 15385 | -2/Protoforge | Learned Access emergency access door positions 15387 | -2/Protoforge | Learned Access stockpile data 15394 | -2/Protoforge | Learned Research stockpile data 15409 | -2/Protoforge | Learned Access recycling unit intel 15895 | -2/Protoforge | Spotted Executioner 15905 | -2/Protoforge | Spotted Executioner 15945 | -2/Protoforge | Destroyed Executioner 15949 | -2/Protoforge | Spotted Hotshot 15952 | -2/Protoforge | Spotted Hotshot 15952 | -2/Protoforge | Found Exp. Core Analyzer 15954 | -2/Protoforge | Spotted Hotshot 15956 | -2/Protoforge | Found Exp. Core Analyzer 15992 | -2/Protoforge | Destroyed Hotshot 16024 | -2/Protoforge | Spotted Executioner 16044 | -2/Protoforge | Spotted Executioner 16070 | -2/Protoforge | Lost 4 parts (1p1n1u1w) 16092 | -2/Protoforge | Destroyed Executioner 16104 | -2/Protoforge | Spotted Hotshot 16110 | -2/Protoforge | Spotted Executioner 16113 | -2/Protoforge | Found Adv. Kinecellerator 16130 | -2/Protoforge | Destroyed Executioner 16130 | -2/Protoforge | Destroyed Executioner 16134 | -2/Protoforge | Spotted Striker 16135 | -2/Protoforge | Spotted Striker 16138 | -2/Protoforge | Destroyed Striker 16145 | -2/Protoforge | Destroyed Striker 16150 | -2/Protoforge | Lost 6 allies 16180 | -2/Protoforge | P-80 Master assimilated allied 02FCS-D 16191 | -2/Protoforge | Spotted Executioner 16191 | -2/Protoforge | Spotted Striker 16199 | -2/Protoforge | Spotted Striker 16200 | -2/Protoforge | Spotted Striker 16204 | -2/Protoforge | Destroyed Striker 16204 | -2/Protoforge | Destroyed Executioner 16212 | -2/Protoforge | Spotted Decapitator 16215 | -2/Protoforge | Spotted Decapitator 16219 | -2/Protoforge | Spotted Decapitator 16230 | -2/Protoforge | Spotted Executioner 16232 | -2/Protoforge | Spotted Executioner 16235 | -2/Protoforge | Lost 3 allies 16235 | -2/Protoforge | Spotted Striker 16240 | -2/Protoforge | Spotted Executioner 16251 | -2/Protoforge | P-80 Master assimilated allied 02FCT-D 16256 | -2/Protoforge | Spotted Executioner 16279 | -2/Protoforge | Spotted Hotshot 16280 | -2/Protoforge | Spotted Hotshot 16295 | -2/Protoforge | Found Scrap Suit 16315 | -2/Protoforge | Spotted Executioner 16317 | -2/Protoforge | Spotted Executioner 16323 | -2/Protoforge | Lost 4 allies 16336 | -2/Protoforge | Found Scrap Suit 16353 | -2/Protoforge | Lost 5 parts (1n2u2w) 16407 | -2/Protoforge | Spotted Executioner 16410 | -2/Protoforge | Spotted Executioner 16414 | -2/Protoforge | Destroyed Executioner 16425 | -2/Protoforge | Spotted Executioner 16426 | -2/Protoforge | Destroyed Executioner 16430 | -2/Protoforge | Spotted Executioner 16438 | -2/Protoforge | Found UFD Drillbomb 16452 | -2/Protoforge | Destroyed Executioner 16455 | -2/Protoforge | Destroyed Executioner 16460 | -2/Protoforge | Spotted Executioner 16462 | -2/Protoforge | Spotted Executioner 16468 | -2/Protoforge | Found Exp. Targeting Computer 16473 | -2/Protoforge | Spotted Striker 16475 | -2/Protoforge | Spotted Striker 16518 | -2/Protoforge | Lost 7 parts (2p2n1u2w) 16550 | -2/Protoforge | Lost 16 allies 16637 | -2/Protoforge | Build established: Scavenger-Scrapper 17902 | -2/Protoforge | Spotted Striker 19746 | -2/Protoforge | Spotted Striker 19753 | -2/Protoforge | Destroyed Striker 19780 | -2/Protoforge | Spotted Executioner 19795 | -2/Protoforge | Spotted Striker 19795 | -2/Protoforge | Spotted Striker 19796 | -2/Protoforge | Spotted Striker 19797 | -2/Protoforge | Spotted Striker 19807 | -2/Protoforge | Spotted Hotshot 19809 | -2/Protoforge | Spotted Hotshot 19809 | -2/Protoforge | Spotted Hotshot 19830 | -2/Protoforge | Spotted Hotshot 19854 | -2/Protoforge | Spotted Executioner 19856 | -2/Protoforge | Lost 4 allies 19871 | -2/Protoforge | Spotted Executioner 20066 | -2/Protoforge | Build established: Scavenger-Sprinter 23821 | -2/Protoforge | UFD reported confirmed Drillbomb installation 25752 | -2/Protoforge | Spotted Immortal 25766 | -2/Protoforge | Destroyed Immortal 25769 | -2/Protoforge | Spotted Executioner 25769 | -2/Protoforge | Spotted Executioner 25771 | -2/Protoforge | Found Exp. Cloaking Device 25772 | -2/Protoforge | Core integrity fell below 20% 25781 | -2/Protoforge | Spotted Hotshot 25783 | -2/Protoforge | Spotted Hotshot 25785 | -2/Protoforge | Spotted Hotshot 25797 | -2/Protoforge | Spotted Striker 25797 | -2/Protoforge | Spotted Striker 25824 | -2/Protoforge | Spotted Striker 25825 | -2/Protoforge | Spotted Executioner 25862 | -2/Protoforge | Lost 9 allies 27407 | -2/Protoforge | Spotted Decapitator 27412 | -2/Protoforge | Spotted Decapitator 27413 | -2/Protoforge | Spotted Decapitator 27413 | -2/Protoforge | Spotted Decapitator 27416 | -2/Protoforge | Spotted Executioner 27417 | -2/Protoforge | Spotted Executioner 27417 | -2/Protoforge | Spotted Executioner 27420 | -2/Protoforge | Spotted Executioner 27462 | -2/Protoforge | Lost 9 allies 43756 | -2/Protoforge | UFD reported confirmed Drillbomb installation 44636 | -2/Protoforge | Lost 4 allies 50215 | -2/Protoforge | Lost 3 allies 50295 | -2/Protoforge | Lost 3 allies 51455 | -2/Protoforge | Spotted Striker 51489 | -2/Protoforge | Spotted Executioner 51499 | -2/Protoforge | Spotted Striker 51499 | -2/Protoforge | Spotted Striker 51523 | -2/Protoforge | Spotted Executioner 51537 | -2/Protoforge | Crushed by falling debris 51592 | -2/Protoforge | Lost 3 allies 51704 | -2/Protoforge | Fabricated Nuclear Pulse Array (x1) 51807 | -2/Protoforge | Lost 3 allies 51840 | -2/Protoforge | Build established: Scavenger-Mutant 51852 | -2/Protoforge | Spotted Executioner 51852 | -2/Protoforge | Spotted Executioner 54082 | -2/Protoforge | Lost 4 allies 54271 | -2/Protoforge | Spotted Hotshot 54283 | -2/Protoforge | Spotted Hotshot 54286 | -2/Protoforge | Spotted Hotshot 54289 | -2/Protoforge | Spotted Hotshot 54289 | -2/Protoforge | Spotted Hotshot 54289 | -2/Protoforge | Spotted Hotshot 54296 | -2/Protoforge | Spotted Hotshot 54296 | -2/Protoforge | Spotted Hotshot 54306 | -2/Protoforge | Destroyed Hotshot 54318 | -2/Protoforge | Spotted Executioner 54318 | -2/Protoforge | Spotted Striker 54334 | -2/Protoforge | Spotted Striker 54334 | -2/Protoforge | Spotted Executioner 54374 | -2/Protoforge | Spotted Striker 54381 | -2/Protoforge | Spotted Executioner 54390 | -2/Protoforge | Spotted Striker 54463 | -2/Protoforge | Spotted Striker 54488 | -2/Protoforge | Spotted Executioner 54489 | -2/Protoforge | Spotted Striker 54493 | -2/Protoforge | Spotted Executioner 54524 | -2/Protoforge | Spotted Striker 54526 | -2/Protoforge | Warped through subspace 54530 | -2/Protoforge | Destroyed by Executioner with Helical Railgun Last Messages --------------- Neutrino Core. 54487_ N-04 Retriever collects Scrap Suit. 54487_ N-04 Retriever collects Ovr. Railgun. 54488_ N-04 Retriever collects Corrupted Scrap Suit. 54502_ N-04 Retriever collects Corrupted Mak. Microdissipator Network. 54508_ System corrupted: Substantial component data lost. 54512_ 0bP_NET: Lugger 696 inbound, all units not involved in other operations escort to target. 54512_ Impulse Thruster Array destroyed. 54512_ Dropped Lgt. Humpback. 54523_ Penetrated by Slug. 54523_ Lgt. Quantum Reactor destroyed. 54523_ Slug penetrates Wall. 54524_ System corrupted: Heat flow error (+151). 54526_ Warped through subspace. 54527_ Acquired 10 matter. Map ----- +----------------------------------------------------+ | ????????????????????#### | | ????????????????????#### | | ????????????????????## " " | | ????????????????????###" "%" | | ????????????????????## #####!!!!##### !!!##### | | ????????????????????## #####""""#####""""##### | | ???????????????????### ; # ##################?## | | ???????##??????????# # ; % # ##################?## | | ???????? #????###?## % %# ##? #???????????????? | | ???###### ##### ## ;% %; ## #???????????????? | | ??## # # # # % ; # ##???????????????? | | ?## ## ## # ; ; #????##?????##### | | ##### ## # ;; ;% %; # ##### #?????##### | | # # % %%% ; # ## #??????## | | ## %% ;% %% ## ########## | | ### % %%%%;;%;;;#; #######""##" | | ## "" ; %%% ; ;#;# "" | | # ; %%%%%% %% + " " | | ## ; %% %%% %;;;#;# " " "" | | ### % %%% % %%% ;% ; " "" | | # % % % %%%% ; " | | ## ! %% =%% % %%%;; | | ### % % %%%% %% % %%%%% ;" " | | ### % % % % % %% %%%% % % | | ##" % ;;% %% %%% %%%%%%%% %% % % | | ##""""# ; % % %@ %m %%%%%%% %% %C% | | #### # %% ; ;%% % %% % % %%%%% | | #### ; ;% % %%%; % % %%% % %%% | | #### ; %;%% %% %%%%% %% %% % % | | #### ; % %% %%%%% %% %# % %%%%%%%%% % % | | ##### ; % % %% "% ; ; " ;%% %%% %% %% | | #### ;;%%%%; "%% ## # """ ; % %%%% % | | = %%%; % " " ###" # %%%%% % %% | | "" %% ;% ## #;;#;### % % %%%%% % | | """ % %% ;;;#;################# %%%%%% | | !! " " %;;;#############?????###"" % %%% % | | """"" %% % ######?????## % %% | | """%" ; ######?????# %%%%%% | | %"" % " ####??????### %% %%% % | | % % " "" "" ####??????# # %%%%%%% | | % %" " """ """ ####??????# %%%%%% | | ##"%%"# " "" """ ####??????## # %%%%%% | | # " " "%" "###???????## % =%%%%%%% | | %% " "" # ##???###?# # % %% =%%%% | | "" %% "##"#"### ?? # ### "" %%%%%%% | | %" """"### % %%%%%%% | | % % % %% " ## # %%%%% %% | | % %% ## % % %%%%% %%% | | %" %%%%%% "##"% %%%%%%%%%% % | | %%%%%% % %& " " #% # %%%%%%%%%%% | +----------------------------------------------------+ Best States ------------- Heat Dissipation 69 Energy Generation 63 Energy Capacity 785 Matter Stores 300 Matter Capacity 300 Sight Range 23 Robot Scan Range 16 Terrain Scan Range 24 Terrain Scan Density 1210 ECM Strength 2 Jamming Range 16 Cloak Strength 4 Power Amplification 40 Additional Mass Support 9 Armor Coverage 800 Resistance: TH 25 Core Shielding 20 Propulsion Shielding 90 Weapon Shielding 90 Melee Speed Boost 30 Evasion (%) 80 Targeting Accuracy 12 Target Analysis 8 Core Analysis 12 Armor Integrity Analysis 40 Recoil Reduction 2 Kinecelleration 50 Salvage Targeting 3 Offensive Hacking 50 Defensive Hacking 36 Authchip Count 3 Item Schematics ----------------- Flight Unit | -9/Recycling | Hacked Targeting Computer | -9/Recycling | Hacked Mak. Coolant Network | -9/Scraptown | Extrapolated Machine Rigger | -9/Scraptown | Extrapolated Mak. Leg | -9/Scraptown | Extrapolated Battle Rifle | -9/Scraptown | Extrapolated Spk. Treads | -9/Scraptown | Extrapolated Deep Structural Scanner | -9/Scraptown | Extrapolated Mak. Targeting Computer | -9/Scraptown | Extrapolated Barrage Gun | -9/Scraptown | Extrapolated Hvy. Battle Rifle | -9/Scraptown | Extrapolated Mak. Terrain Scan Processor | -6/Factory | Extrapolated Mak. Light Armor Plating | -6/Factory | Extrapolated Beamcaster | -6/Factory | Extrapolated Mak. Terrain Scanner | -6/Factory | Extrapolated Mak. Power Source | -6/Factory | Extrapolated Spk. Medium Treads | -6/Factory | Extrapolated Mak. Trap Scanner | -6/Waste | Extrapolated Spk. Heavy Treads | -6/Factory | Extrapolated Mak. Flight Unit | -6/Factory | Extrapolated 0b10 Decoder Chip [Generic] | -6/Factory | Extrapolated 0b10 Decoder Chip [Scout] | -6/Factory | Extrapolated 0b10 Decoder Chip [Skirmisher] | -6/Factory | Extrapolated Energy Deflector | -6/Factory | Extrapolated Mak. Hover Unit | -6/Factory | Extrapolated Mak. Medium Armor Plating | -6/Factory | Extrapolated Nuclear Pulse Thruster | -6/Factory | Scanalyzed Adv. Power Amplifier | -6/Factory | Scanalyzed Mak. Ablative Armor | -6/Factory | Extrapolated Hacking Suite | -6/Factory | Hacked Tactical Coordination Suite | -6/Factory | Extrapolated Mak. Thermal Plating | -6/Factory | Extrapolated Hvy. Beamcaster | -6/Factory | Extrapolated Mak. Kinetic Plating | -6/Factory | Extrapolated Mak. Hacking Suite | -6/Factory | Extrapolated Mak. Laser | -6/Factory | Extrapolated Nuclear Pulse Array | -6/Factory | Hacked Slug Cannon | -6/Factory | Extrapolated Imp. Hacking Suite | -6/Factory | Scanalyzed Stasis Canceller | -6/Factory | Scanalyzed Bore Cannon | -6/Factory | Extrapolated Mak. Sensor Array | -6/Factory | Extrapolated Mak. System Restoration Module | -6/Lower Caves | Extrapolated Multitool | -6/Lower Caves | Extrapolated Enh. Flamer | -6/Lower Caves | Extrapolated Plasma Flamer | -6/Lower Caves | Extrapolated Mak. Sword | -6/Lower Caves | Extrapolated Lgt. Humpback | -6/Zion | Extrapolated Energy Well | -6/Zion | Archive Imp. Plasma Cutter | -6/Zion | Archive Disruptor Cannon | -6/Zion | Archive Phase Cannon | -6/Zion | Archive KE Penetrator | -6/Zion | Archive Arm. Leg | -6/Zion | Archive Adv. Actuator Array | -6/Zion | Archive Adv. Thermal Shield | -6/Zion | Archive Plasma Rifle | -6/Zion | Archive Tesla Rifle | -6/Zion | Archive Imp. Transmission Jammer | -6/Zion | Archive Imp. Particle Charger | -6/Zion | Archive Adv. Signal Interpreter | -6/Zion | Archive Imp. Launcher Guidance Computer | -6/Zion | Archive Mak. Heavy Armor Plating | -6/Zion | Extrapolated Mak. System Shield | -5/Proximity Caves | Extrapolated Arc Thrower | -5/Proximity Caves | Extrapolated Adv. Transmission Jammer | -5/Factory | Hacked Imp. Surge Thruster | -5/Factory | Hacked Adv. Hacking Suite | -5/Factory | Hacked Exp. Propulsion Shielding | -4/Factory | Hacked Exp. Power Shielding | -4/Factory | Hacked Enh. Nova Cannon | -4/Factory | Hacked Cld. Q-thruster | -4/Factory | Scanalyzed Q-thruster | -4/Factory | Hacked Assault Drone Bay | -4/Zhirov | Free Exp. Heat Sink | -4/Zhirov | Free Exp. Optical Array | -4/Zhirov | Free Imp. Arc Thrower | -4/Zhirov | Free Mic. Antimatter Reactor | -3/Research | Hacked Exp. System Shield | -3/Research | Scanalyzed Triangulator | -3/Research | Scanalyzed Graphene Brace | -3/Research | Scanalyzed Exp. Hacking Suite | -3/Testing | Scanalyzed Graviton Reactor | -3/Testing | Scanalyzed Quantum Reactor | -2/Quarantine | Hacked Exp. Thermal Generator | -2/Protoforge | Archive Imp. Quantum Reactor | -2/Protoforge | Archive Exp. Targeting Computer | -2/Protoforge | Archive Exp. Shield Generator | -2/Protoforge | Archive Robot Schematics ------------------ K-01 Serf | -6/Zion | Archive R-10 Processor | -6/Zion | Archive D-83 Annihilator | -6/Zion | Archive Fabricated ------------ Lrn. Terrain Scanner | x2 | -6/Factory | Preloaded Deep Structural Scanner | x1 | -6/Factory | Authchip Flight Unit | x2 | -6/Factory | Authchip Nuclear Pulse Array | x1 | -6/Factory | Authchip Nuclear Pulse Array | x1 | -5/Factory | Authchip Multitool | x1 | -5/Factory | Authchip Adv. Hacking Suite | x1 | -4/Factory | Authchip Imp. Surge Thruster | x2 | -4/Factory | Authchip Deep Structural Scanner | x1 | -4/Factory Cld. Q-thruster | x1 | -3/Research | Authchip Graviton Reactor | x1 | -3/Testing | Authchip Enh. Nova Cannon | x2 | -2/Protoforge Nuclear Pulse Array | x1 | -2/Protoforge | Authchip Repaired ---------- Lgt. Treads | 37% | -10/Materials Nuclear Pulse Thruster | 83% | -6/Factory | Broken VTOL Module | 8% | -6/Factory VTOL Module | 28% | -6/Factory Lgt. Nuclear Core | 22% | -6/Factory Nuclear Pulse Array | 22% | -3/Research Q-thruster | 27% | -2/Quarantine Alien Tech Used ----------------- Integrated Dissipator Sigix Broadsword Dimensional Node Initializer High-powered Transdimensional Reconstructor Subatomic Replicator Supercharged TR Transdimensional Reconstructor Achievements -------------- None Challenges ------------ None Game ------ Seed WeldingSubdwellerCutter Manual? 0 Play Time 07:37:01 Cumulative 355.7 hours Start 2025.07.19 @ 13:14:20 End 2025.07.19 @ 21:04:14 Sessions 1 Manual Loads 0 Difficulty Rogue Special Mode None Game No. 172 Rogue 172 Adventurer 0 Explorer 0 Win Type - Total 23 Types 8/1/5/1/5/1/0/1/0/1 Lore% 90 Gallery% 79 Achievement% 76 Wizard Run 0 Options --------- Layout 1 ASCII 0 Keyboard 0 Movement Numpad Keybinds 0 Fullscreen 1 Font 24/Smallcaps Map View 50x35 Zoom Use 0% Tactical HUD 1 Map Filters NONE Filters NONE Steam 1 RUN: 703c5353-b2e7-49ad-a369-eabad936a651